Workbook

Sheet Anleitung
A1: Falls Markoschutz aktiv, bitte deaktivieren !!!
A3: Diese Datei wurde angelegt um den "Formularkrieg" etwas zu vereinfachen. Sie gilt für alle Prüfungen im Bereich Gebrauchshundesport incl. Dem Team-Test Hiermit können die Meldescheine, Richterblätter und Ergebnislisten ausgedruckt, bzw. erstellt werden. Anleitung: Schritt 1 In der Tabelle „Organisation“ zunächst die Daten der Prüfung anlegen neben den Prf-Daten sind 2 Schaltflächen. Hiermit können die Prf-Daten für die Ausdrucke der LR-Unterlagen bzw. der Ergebnisliste in die Kopf-/Fußzeilen übernommen werden. Der 2. entfernt diese wieder, falls gewünscht. Für die Verbände, die die Formulare für den Sportbeitrag benötigen, auch gleich den Sockelbeitrag eintragen.
A18: Schritt 2 In der Tabelle „Stammdaten“ HF die Daten der HF und der Hunde eintragen Links davon sind 2 Schaltflächen zum Ausdrucken von Formularen RB = Richterunterlagen für den betreffenden Teilnehmer Meld = Meldeschein für den Teilnehmer Ganz Wichtig: Die Tabelle darf nicht sortiert werden, die Spalte „Nr.“ muss chronologisch aufwärts gehen. Falls die Teilnehmer hier umsortiert werden müssen nur die Daten ab der Spalte C bis AA mit Kopieren und Einfügen verändern. (Ist nicht unbedingt erforderlich, weil die Ergebnisliste nach Prf-Stufe und Ergebnis sortiert wird. Auf keinen Fall mit Ausschneiden verändern !!!!
A29: Schritt 3 Nach Datenerfassung und dem Ausdrucken der Prf-Unterlagen kann mit der Wettkampfeingabe in der Tabelle „Auswertung" begonnen werden. Nur die gelben Felder ausfüllen, alle anderen beinhalten Formeln. Rechts neben der Tabelle ist eine Schaltfläche, mit der eine Ergebnisliste in einem neuen Dok angelegt wird. Diese ist nach Prüfungsstufe und Ergebnis sortiert, die leeren Zeilen wurden entfernt. Sie kann jetzt bedenkenlos nachbearbeitet werden, alle Formeln sind entfernt. In der Tabelle Ergebnis sind die Daten erfasst, aber noch nicht sortiert. Diese Tabelle bitte nicht bearbeiten, Sie ist die Vorlage für die Ergebnislisten-Erstellung Regelung für BH-Prüfungen: Da keine Bekanntegaben der Punkte erfolgen darf, bitte nur b oder nb eingeben.
A44: Schritt 4 Nach Abschluss der Prüfung kann die Tabelle „Sammelblatt“ aufgerufen werden. Hier sind die statistischen Daten manuell einzutragen.

Sheet Organisation
A3: Hundesportverband | B3: swhv | D3: =IF(B3="","",INDEX(B63:B67,MATCH(B3,A63:A67))) -> Südwestdeutscher Hundesportverband
A5: Prüfungsart | B5: Vereinsprüfung
A6: / Prf.-Nr. | B6: 135
A7: Veranstalter | B7: Hundefreunde Irgendwo
A8: Vereinsnummer | B8: 0305
A9: Kreisgruppe | B9: 3
A10: Datum | B10: 30.03.2019 | G10: Bitte etwas Geduld !!
A11: LR 1 | B11: Horst Hinterhuber
A12: LR 2
A14: Prüfungsleiter | B14: Hans Wurst
A15: Straße | B15: Metzgerstr. 4
A16: PLZ Ort | B16: 68259 Mannheim
A17: Telefon | B17: 0621 xxxxx
A19: Helfer 1
A20: Helfer 2
A22: Höhe Sportbeitrag | B22: 1.1
C25: Kürzel | D25: Max
C26: IGP V | D26: 300
A27: Pfr-Arten | B27: Prüfungsart | C27: IGP 1 | D27: 300 | E27: PrfZiff
B28: Gebrauchshundeprüfungen | C28: IGP 2 | D28: 300 | E28: 1
C29: IGP 3 | D29: 300 | E29: 1
C30: IGP ZTP | D30: 300 | E30: 1
C31: IFH V | D31: 100 | E31: 1
C32: IFH 1 | D32: 100 | E32: 1
B33: Fährtenhundeprüfungen | C33: IFH 2 | D33: 100 | E33: 2
C34: IGP FH | D34: 200 | E34: 2
C35: GPr 1 | D35: 200 | E35: 2
C36: GPr 2 | D36: 200 | E36: 2
B37: Prüfungen ohne Fährte | C37: GPr 3 | D37: 200 | E37: 3
C38: IBGH 1 | D38: 100 | E38: 3
C39: IBGH 2 | D39: 100 | E39: 3
B40: Begleithundeprüfungen | C40: IBGH 3 | D40: 100 | E40: 8
C41: BH | D41: 60 | E41: 8
C42: BH/SK | D42: 60 | E42: 8
C43: SK | E43: 9
C44: FPr 1 | D44: 100 | E44: 9
C45: UPr 1 | D45: 100 | E45: 10
B46: Spartenprüfungen | C46: SPr 1 | D46: 100 | E46: 4
C47: FPr 2 | D47: 100 | E47: 5
C48: UPr 2 | D48: 100 | E48: 6
C49: SPr 2 | D49: 100 | E49: 4
C50: FPr 3 | D50: 100 | E50: 5
C51: UPr 3 | D51: 100 | E51: 6
C52: SPr 3 | D52: 100 | E52: 4
C53: StöberSt. 1 | D53: 100 | E53: 5
C54: StöberSt. 2 | D54: 100 | E54: 6
B55: Stöberprüfungen | C55: StöberSt. 3 | D55: 100 | E55: 7
C56: Team-Test | D56: 150 | E56: 7
E57: 7
E58: 11
A62: Verbände
A63: BLV | B63: Bayerischer Landesverband für Hundesport
A64: DSV | B64: Deutscher Sporthundverband
A65: HSVRM | B65: Hundesportverband Rhein Main
A66: SGSV | B66: Schutz- und Gebrauchshunde-sportverband
A67: swhv | B67: Südwestdeutscher Hundesportverband

Sheet Stammdaten HF
E1: Hundeführer | J1: Besitzer | Q1: Hund | Y1: Impfung
A2: Nr. | B2: Drucken: | C2: PrfStufe | D2: Name | E2: Vorname | F2: Verein | G2: MNr | H2: Str | I2: Ort | J2: Name | K2: Vorname | L2: Verein | M2: MNr | N2: KG | O2: Str | P2: Ort | Q2: Geführter Hund | R2: Rasse | S2: LB/Nr. | T2: Wurftag | U2: Geschl. | V2: ZB/Reg | W2: Täto | X2: Chip | Y2: ImpfDat | Z2: ImpfGültig | AA2: TierarztName
A3: 1 | C3: IFH 1 | D3: Mustermax | E3: Andreas | F3: sspv MA | G3: 30500001 | H3: ringstr | I3: Mannheim | J3: Hübsch | K3: Dorothea | L3: SSPV | M3: 30512345 | N3: 3 | O3: Max-Wi | P3: Schönau | Q3: Axel | R3: Mixy | S3: 123 | T3: 1978-07-01 | U3: Rüde | V3: VDH/DMC 34345 | W3: MC- 3344 | X3: 454454567883111
A4: 2 | C4: BH/SK | D4: Fröhlich | E4: Marion | F4: VfH Ilvesheim | G4: 30400345 | H4: Kreisring 2 | I4: Ilvesheim | J4: siehe HF | Q4: Trigger | R4: Hollands | S4: 4567 | T4: 2013-10-14 | U4: Hündin | V4: asasas | W4: ohne | X4: 276222333444555
A5: 3 | C5: GPr 2 | D5: Hintersee | E5: Florian | F5: HSV Frankenthal | Q5: Fräulein Meier | R5: Mischling
A6: 4 | C6: IGP 3 | D6: Hexenmeister | E6: Kunibert | F6: VdH Eningen | Q6: Eidotter | R6: Edelmix
A7: 5 | C7: Team-Test | D7: Fröhlich | E7: Marion | F7: VfH Ilvesheim | G7: 30400345 | H7: Kreisring 2 | I7: Ilvesheim | J7: siehe HF | Q7: Trigger | R7: Hollands | S7: 4567 | T7: 2013-10-14 | U7: Hündin | V7: asasas | X7: 276222333444555
A8: 6 | C8: SK | D8: maier
A9: 7
A10: 8
A11: 9
A12: 10
A13: 11
A14: 12
A15: 13
A16: 14
A17: 15
A18: 16
A19: 17
A20: 18
A21: 19
A22: 20
A23: 21
A24: 22
A25: 23
A26: 24
A27: 25
A28: 26
A29: 27
A30: 28
A31: 29
A32: 30
A33: 31
A34: 32
A35: 33
A36: 34
A37: 35
A38: 36

Sheet Auswertung
A1: Kat-Nr. | B1: Name HF | C1: HundName Rasse | D1: Stufe | E1: A | F1: B | G1: C | H1: TSB | I1: Gesamt | J1: Note | P1: Note | R1: PrfZiffer | T1: Prf best. | U1: Dis/Abb | V1: MinPktErreicht | W1: MinPktErreicht | X1: MinPktErreicht | Y1: MinPktzl | Z1: MaxPktzl
A2: 1 | B2: =CONCATENATE(L2," ",K2,CHAR(10),O2) -> Andreas Mustermax sspv MA | C2: =CONCATENATE(M2,CHAR(10),N2) -> Axel Mixy | D2: =IF(LOOKUP($A2,'Stammdaten HF'!$A:A,'Stammdaten HF'!$C:C)="","",LOOKUP($A2,'Stammdaten HF'!$A:A,'Stammdaten HF'!$C:C)) -> IFH 1 | E2: 84 | F2: 90 | G2: 91 | H2: a | I2: =IF(U2,"",IF(SUM(E2,F2,G2)>0,SUM(E2:G2),"")) -> 265 | J2: =IF(U2,"Dis",IF(OR(D2="BH",D2="BH/SK",D2="SK"),AA2,IF(I2="","",IF(OR(D2="BH/SK",D2="BH"),IF(T2="J",Q2,"nb"),Q2)))) -> V | K2: =IF(LOOKUP($A2,'Stammdaten HF'!$A:A,'Stammdaten HF'!$D:D)="","",LOOKUP($A2,'Stammdaten HF'!$A:A,'Stammdaten HF'!$D:D)) -> Mustermax | L2: =IF(LOOKUP($A2,'Stammdaten HF'!$A:A,'Stammdaten HF'!$E:E)="","",LOOKUP($A2,'Stammdaten HF'!$A:A,'Stammdaten HF'!$E:E)) -> Andreas | M2: =IF(LOOKUP($A2,'Stammdaten HF'!$A:A,'Stammdaten HF'!$Q:Q)="","",LOOKUP($A2,'Stammdaten HF'!$A:A,'Stammdaten HF'!$Q:Q)) -> Axel | N2: =IF(LOOKUP($A2,'Stammdaten HF'!$A:A,'Stammdaten HF'!$R:R)="","",LOOKUP($A2,'Stammdaten HF'!$A:A,'Stammdaten HF'!$R:R)) -> Mixy | O2: =IF(LOOKUP($A2,'Stammdaten HF'!$A:A,'Stammdaten HF'!$F:F)="","",LOOKUP($A2,'Stammdaten HF'!$A:A,'Stammdaten HF'!$F:F)) -> sspv MA | P2: =IF(I2>=S2,"V",IF(I2>=(90*Z2/100),"SG",IF(I2>=(80*Z2/100),"G",IF(D2="Team-Test",IF(I2>=(53*Z2/100),"bef","mgh"),IF(I2>=(70*Z2/100),"bef","mgh"))))) -> V | Q2: =IF(D2="","",IF(OR(D2="BH",D2="BH/SK",D2="SK"),IF(I2>=42,"best","nb"),IF(D2="Team-Test",IF(I2<80,"mgh",P2),IF(OR(D2="IFH 1",D2="IFH 2", D2="GPr 3",D2= "GPr 2",D2= "GPr 1", D2="IGP FH"),P2,IF(T2="J",P2,"mgh"))))) -> V | R2: =INDEX(Organisation!$E$28:$E$58,MATCH(D2,Organisation!$C$26:$C$56,)) -> 2 | S2: =IF(Z2=300,286,96*Z2/100) -> 96 | T2: =IF(I2="","",IF(D2="Team-Test",IF(I2>=Y2,"J","N"),IF(OR(V2="N",W2="N",X2="N"),"N","J"))) -> J | U2: =OR($E2="d",$F2="d",$G2="d") -> FALSE | V2: =IF(E2<>"",IF(E2<$Y2,"N","J"),"J") -> J | W2: =IF(F2<>"",IF(F2<$Y2,"N","J"),"J") -> J | X2: =IF(G2<>"",IF(G2<$Y2,"N","J"),"J") -> J | Y2: =IF(D2="Team-Test",80,Z2*0.7/(ROUND(Z2/100,0))) -> 70 | Z2: =INDEX(Organisation!$D$26:$D$56,MATCH(D2,Organisation!$C$26:$C$56,)) -> 100 | AA2: =IF(OR(E2="nb",F2="nb",G2="nb"),"nb",IF(AND(E2="",F2="",G2=""),"","best")) -> best
A3: 2 | B3: =CONCATENATE(L3," ",K3,CHAR(10),O3) -> Marion Fröhlich VfH Ilvesheim | C3: =CONCATENATE(M3,CHAR(10),N3) -> Trigger Hollands | D3: =IF(LOOKUP($A3,'Stammdaten HF'!$A:A,'Stammdaten HF'!$C:C)="","",LOOKUP($A3,'Stammdaten HF'!$A:A,'Stammdaten HF'!$C:C)) -> BH/SK | K3: =IF(LOOKUP($A3,'Stammdaten HF'!$A:A,'Stammdaten HF'!$D:D)="","",LOOKUP($A3,'Stammdaten HF'!$A:A,'Stammdaten HF'!$D:D)) -> Fröhlich | L3: =IF(LOOKUP($A3,'Stammdaten HF'!$A:A,'Stammdaten HF'!$E:E)="","",LOOKUP($A3,'Stammdaten HF'!$A:A,'Stammdaten HF'!$E:E)) -> Marion | M3: =IF(LOOKUP($A3,'Stammdaten HF'!$A:A,'Stammdaten HF'!$Q:Q)="","",LOOKUP($A3,'Stammdaten HF'!$A:A,'Stammdaten HF'!$Q:Q)) -> Trigger | N3: =IF(LOOKUP($A3,'Stammdaten HF'!$A:A,'Stammdaten HF'!$R:R)="","",LOOKUP($A3,'Stammdaten HF'!$A:A,'Stammdaten HF'!$R:R)) -> Hollands | O3: =IF(LOOKUP($A3,'Stammdaten HF'!$A:A,'Stammdaten HF'!$F:F)="","",LOOKUP($A3,'Stammdaten HF'!$A:A,'Stammdaten HF'!$F:F)) -> VfH Ilvesheim | P3: V | Q3: =IF(D3="","",IF(OR(D3="BH",D3="BH/SK",D3="SK"),AA3,IF(D3="Team-Test",IF(I3<80,"mgh",P3),IF(OR(D3="IFH 1",D3="IFH 2", D3="GPr 3",D3= "GPr 2",D3= "GPr 1", D3="IGP FH"),P3,IF(T3="J",P3,"mgh"))))) ->  | R3: =INDEX(Organisation!$E$28:$E$58,MATCH(D3,Organisation!$C$26:$C$56,)) -> 9 | S3: 57.6 | U3: =OR($E3="d",$F3="d",$G3="d") -> FALSE | V3: J | W3: J | X3: J | Y3: 42 | Z3: =INDEX(Organisation!$D$26:$D$56,MATCH(D3,Organisation!$C$26:$C$56,)) -> 60
A4: 3 | B4: Florian Hintersee HSV Frankenthal | C4: Fräulein Meier Mischling | D4: =IF(LOOKUP($A4,'Stammdaten HF'!$A:A,'Stammdaten HF'!$C:C)="","",LOOKUP($A4,'Stammdaten HF'!$A:A,'Stammdaten HF'!$C:C)) -> GPr 2 | F4: 88 | G4: 92 | H4: a | I4: 180 | J4: SG | K4: =IF(LOOKUP($A4,'Stammdaten HF'!$A:A,'Stammdaten HF'!$D:D)="","",LOOKUP($A4,'Stammdaten HF'!$A:A,'Stammdaten HF'!$D:D)) -> Hintersee | L4: =IF(LOOKUP($A4,'Stammdaten HF'!$A:A,'Stammdaten HF'!$E:E)="","",LOOKUP($A4,'Stammdaten HF'!$A:A,'Stammdaten HF'!$E:E)) -> Florian | M4: =IF(LOOKUP($A4,'Stammdaten HF'!$A:A,'Stammdaten HF'!$Q:Q)="","",LOOKUP($A4,'Stammdaten HF'!$A:A,'Stammdaten HF'!$Q:Q)) -> Fräulein Meier | N4: =IF(LOOKUP($A4,'Stammdaten HF'!$A:A,'Stammdaten HF'!$R:R)="","",LOOKUP($A4,'Stammdaten HF'!$A:A,'Stammdaten HF'!$R:R)) -> Mischling | O4: =IF(LOOKUP($A4,'Stammdaten HF'!$A:A,'Stammdaten HF'!$F:F)="","",LOOKUP($A4,'Stammdaten HF'!$A:A,'Stammdaten HF'!$F:F)) -> HSV Frankenthal | P4: SG | Q4: =IF(D4="","",IF(OR(D4="BH",D4="BH/SK",D4="SK"),IF(I4>=42,"best","nb"),IF(D4="Team-Test",IF(I4<80,"mgh",P4),IF(OR(D4="IFH 1",D4="IFH 2", D4="GPr 3",D4= "GPr 2",D4= "GPr 1", D4="IGP FH"),P4,IF(T4="J",P4,"mgh"))))) -> SG | R4: =INDEX(Organisation!$E$28:$E$58,MATCH(D4,Organisation!$C$26:$C$56,)) -> 3 | S4: 192 | T4: J | U4: FALSE | V4: J | W4: J | X4: J | Y4: 70 | Z4: =INDEX(Organisation!$D$26:$D$56,MATCH(D4,Organisation!$C$26:$C$56,)) -> 200 | AA4: best
A5: 4 | B5: Kunibert Hexenmeister VdH Eningen | C5: Eidotter Edelmix | D5: =IF(LOOKUP($A5,'Stammdaten HF'!$A:A,'Stammdaten HF'!$C:C)="","",LOOKUP($A5,'Stammdaten HF'!$A:A,'Stammdaten HF'!$C:C)) -> IGP 3 | E5: 97 | F5: 95 | G5: 93 | H5: vh | I5: 285 | J5: SG | K5: =IF(LOOKUP($A5,'Stammdaten HF'!$A:A,'Stammdaten HF'!$D:D)="","",LOOKUP($A5,'Stammdaten HF'!$A:A,'Stammdaten HF'!$D:D)) -> Hexenmeister | L5: =IF(LOOKUP($A5,'Stammdaten HF'!$A:A,'Stammdaten HF'!$E:E)="","",LOOKUP($A5,'Stammdaten HF'!$A:A,'Stammdaten HF'!$E:E)) -> Kunibert | M5: =IF(LOOKUP($A5,'Stammdaten HF'!$A:A,'Stammdaten HF'!$Q:Q)="","",LOOKUP($A5,'Stammdaten HF'!$A:A,'Stammdaten HF'!$Q:Q)) -> Eidotter | N5: =IF(LOOKUP($A5,'Stammdaten HF'!$A:A,'Stammdaten HF'!$R:R)="","",LOOKUP($A5,'Stammdaten HF'!$A:A,'Stammdaten HF'!$R:R)) -> Edelmix | O5: =IF(LOOKUP($A5,'Stammdaten HF'!$A:A,'Stammdaten HF'!$F:F)="","",LOOKUP($A5,'Stammdaten HF'!$A:A,'Stammdaten HF'!$F:F)) -> VdH Eningen | P5: SG | Q5: SG | R5: =INDEX(Organisation!$E$28:$E$58,MATCH(D5,Organisation!$C$26:$C$56,)) -> 1 | S5: 286 | T5: J | U5: FALSE | V5: J | W5: J | X5: J | Y5: 70 | Z5: =INDEX(Organisation!$D$26:$D$56,MATCH(D5,Organisation!$C$26:$C$56,)) -> 300 | AA5: best
A6: 5 | B6: Marion Fröhlich VfH Ilvesheim | C6: Trigger Hollands | D6: =IF(LOOKUP($A6,'Stammdaten HF'!$A:A,'Stammdaten HF'!$C:C)="","",LOOKUP($A6,'Stammdaten HF'!$A:A,'Stammdaten HF'!$C:C)) -> Team-Test | F6: 49 | G6: 80 | H6: ng | I6: 129 | J6: G | K6: =IF(LOOKUP($A6,'Stammdaten HF'!$A:A,'Stammdaten HF'!$D:D)="","",LOOKUP($A6,'Stammdaten HF'!$A:A,'Stammdaten HF'!$D:D)) -> Fröhlich | L6: =IF(LOOKUP($A6,'Stammdaten HF'!$A:A,'Stammdaten HF'!$E:E)="","",LOOKUP($A6,'Stammdaten HF'!$A:A,'Stammdaten HF'!$E:E)) -> Marion | M6: =IF(LOOKUP($A6,'Stammdaten HF'!$A:A,'Stammdaten HF'!$Q:Q)="","",LOOKUP($A6,'Stammdaten HF'!$A:A,'Stammdaten HF'!$Q:Q)) -> Trigger | N6: =IF(LOOKUP($A6,'Stammdaten HF'!$A:A,'Stammdaten HF'!$R:R)="","",LOOKUP($A6,'Stammdaten HF'!$A:A,'Stammdaten HF'!$R:R)) -> Hollands | O6: =IF(LOOKUP($A6,'Stammdaten HF'!$A:A,'Stammdaten HF'!$F:F)="","",LOOKUP($A6,'Stammdaten HF'!$A:A,'Stammdaten HF'!$F:F)) -> VfH Ilvesheim | P6: G | Q6: G | R6: =INDEX(Organisation!$E$28:$E$58,MATCH(D6,Organisation!$C$26:$C$56,)) -> 11 | S6: 144 | T6: J | U6: FALSE | V6: J | W6: N | X6: J | Y6: 80 | Z6: =INDEX(Organisation!$D$26:$D$56,MATCH(D6,Organisation!$C$26:$C$56,)) -> 150 | AA6: best
A7: 6 | B7: maier | D7: =IF(LOOKUP($A7,'Stammdaten HF'!$A:A,'Stammdaten HF'!$C:C)="","",LOOKUP($A7,'Stammdaten HF'!$A:A,'Stammdaten HF'!$C:C)) -> SK | K7: =IF(LOOKUP($A7,'Stammdaten HF'!$A:A,'Stammdaten HF'!$D:D)="","",LOOKUP($A7,'Stammdaten HF'!$A:A,'Stammdaten HF'!$D:D)) -> maier | L7: =IF(LOOKUP($A7,'Stammdaten HF'!$A:A,'Stammdaten HF'!$E:E)="","",LOOKUP($A7,'Stammdaten HF'!$A:A,'Stammdaten HF'!$E:E)) ->  | M7: =IF(LOOKUP($A7,'Stammdaten HF'!$A:A,'Stammdaten HF'!$Q:Q)="","",LOOKUP($A7,'Stammdaten HF'!$A:A,'Stammdaten HF'!$Q:Q)) ->  | N7: =IF(LOOKUP($A7,'Stammdaten HF'!$A:A,'Stammdaten HF'!$R:R)="","",LOOKUP($A7,'Stammdaten HF'!$A:A,'Stammdaten HF'!$R:R)) ->  | O7: =IF(LOOKUP($A7,'Stammdaten HF'!$A:A,'Stammdaten HF'!$F:F)="","",LOOKUP($A7,'Stammdaten HF'!$A:A,'Stammdaten HF'!$F:F)) ->  | P7: V | Q7: best | R7: =INDEX(Organisation!$E$28:$E$58,MATCH(D7,Organisation!$C$26:$C$56,)) -> 10 | S7: 0 | U7: FALSE | V7: J | W7: J | X7: J | Z7: =INDEX(Organisation!$D$26:$D$56,MATCH(D7,Organisation!$C$26:$C$56,)) -> 0
A8: 7 | D8: =IF(LOOKUP($A8,'Stammdaten HF'!$A:A,'Stammdaten HF'!$C:C)="","",LOOKUP($A8,'Stammdaten HF'!$A:A,'Stammdaten HF'!$C:C)) ->  | K8: =IF(LOOKUP($A8,'Stammdaten HF'!$A:A,'Stammdaten HF'!$D:D)="","",LOOKUP($A8,'Stammdaten HF'!$A:A,'Stammdaten HF'!$D:D)) ->  | L8: =IF(LOOKUP($A8,'Stammdaten HF'!$A:A,'Stammdaten HF'!$E:E)="","",LOOKUP($A8,'Stammdaten HF'!$A:A,'Stammdaten HF'!$E:E)) ->  | M8: =IF(LOOKUP($A8,'Stammdaten HF'!$A:A,'Stammdaten HF'!$Q:Q)="","",LOOKUP($A8,'Stammdaten HF'!$A:A,'Stammdaten HF'!$Q:Q)) ->  | N8: =IF(LOOKUP($A8,'Stammdaten HF'!$A:A,'Stammdaten HF'!$R:R)="","",LOOKUP($A8,'Stammdaten HF'!$A:A,'Stammdaten HF'!$R:R)) ->  | O8: =IF(LOOKUP($A8,'Stammdaten HF'!$A:A,'Stammdaten HF'!$F:F)="","",LOOKUP($A8,'Stammdaten HF'!$A:A,'Stammdaten HF'!$F:F)) ->  | R8: =INDEX(Organisation!$E$28:$E$58,MATCH(D8,Organisation!$C$26:$C$56,)) ->  | U8: FALSE | V8: J | W8: J | X8: J | Z8: =INDEX(Organisation!$D$26:$D$56,MATCH(D8,Organisation!$C$26:$C$56,)) -> 
A9: 8 | D9: =IF(LOOKUP($A9,'Stammdaten HF'!$A:A,'Stammdaten HF'!$C:C)="","",LOOKUP($A9,'Stammdaten HF'!$A:A,'Stammdaten HF'!$C:C)) ->  | K9: =IF(LOOKUP($A9,'Stammdaten HF'!$A:A,'Stammdaten HF'!$D:D)="","",LOOKUP($A9,'Stammdaten HF'!$A:A,'Stammdaten HF'!$D:D)) ->  | L9: =IF(LOOKUP($A9,'Stammdaten HF'!$A:A,'Stammdaten HF'!$E:E)="","",LOOKUP($A9,'Stammdaten HF'!$A:A,'Stammdaten HF'!$E:E)) ->  | M9: =IF(LOOKUP($A9,'Stammdaten HF'!$A:A,'Stammdaten HF'!$Q:Q)="","",LOOKUP($A9,'Stammdaten HF'!$A:A,'Stammdaten HF'!$Q:Q)) ->  | N9: =IF(LOOKUP($A9,'Stammdaten HF'!$A:A,'Stammdaten HF'!$R:R)="","",LOOKUP($A9,'Stammdaten HF'!$A:A,'Stammdaten HF'!$R:R)) ->  | O9: =IF(LOOKUP($A9,'Stammdaten HF'!$A:A,'Stammdaten HF'!$F:F)="","",LOOKUP($A9,'Stammdaten HF'!$A:A,'Stammdaten HF'!$F:F)) ->  | R9: =INDEX(Organisation!$E$28:$E$58,MATCH(D9,Organisation!$C$26:$C$56,)) ->  | U9: FALSE | V9: J | W9: J | X9: J | Z9: =INDEX(Organisation!$D$26:$D$56,MATCH(D9,Organisation!$C$26:$C$56,)) -> 
A10: 9 | D10: =IF(LOOKUP($A10,'Stammdaten HF'!$A:A,'Stammdaten HF'!$C:C)="","",LOOKUP($A10,'Stammdaten HF'!$A:A,'Stammdaten HF'!$C:C)) ->  | K10: =IF(LOOKUP($A10,'Stammdaten HF'!$A:A,'Stammdaten HF'!$D:D)="","",LOOKUP($A10,'Stammdaten HF'!$A:A,'Stammdaten HF'!$D:D)) ->  | L10: =IF(LOOKUP($A10,'Stammdaten HF'!$A:A,'Stammdaten HF'!$E:E)="","",LOOKUP($A10,'Stammdaten HF'!$A:A,'Stammdaten HF'!$E:E)) ->  | M10: =IF(LOOKUP($A10,'Stammdaten HF'!$A:A,'Stammdaten HF'!$Q:Q)="","",LOOKUP($A10,'Stammdaten HF'!$A:A,'Stammdaten HF'!$Q:Q)) ->  | N10: =IF(LOOKUP($A10,'Stammdaten HF'!$A:A,'Stammdaten HF'!$R:R)="","",LOOKUP($A10,'Stammdaten HF'!$A:A,'Stammdaten HF'!$R:R)) ->  | O10: =IF(LOOKUP($A10,'Stammdaten HF'!$A:A,'Stammdaten HF'!$F:F)="","",LOOKUP($A10,'Stammdaten HF'!$A:A,'Stammdaten HF'!$F:F)) ->  | R10: =INDEX(Organisation!$E$28:$E$58,MATCH(D10,Organisation!$C$26:$C$56,)) ->  | U10: FALSE | V10: J | W10: J | X10: J | Z10: =INDEX(Organisation!$D$26:$D$56,MATCH(D10,Organisation!$C$26:$C$56,)) -> 
A11: 10 | D11: =IF(LOOKUP($A11,'Stammdaten HF'!$A:A,'Stammdaten HF'!$C:C)="","",LOOKUP($A11,'Stammdaten HF'!$A:A,'Stammdaten HF'!$C:C)) ->  | K11: =IF(LOOKUP($A11,'Stammdaten HF'!$A:A,'Stammdaten HF'!$D:D)="","",LOOKUP($A11,'Stammdaten HF'!$A:A,'Stammdaten HF'!$D:D)) ->  | L11: =IF(LOOKUP($A11,'Stammdaten HF'!$A:A,'Stammdaten HF'!$E:E)="","",LOOKUP($A11,'Stammdaten HF'!$A:A,'Stammdaten HF'!$E:E)) ->  | M11: =IF(LOOKUP($A11,'Stammdaten HF'!$A:A,'Stammdaten HF'!$Q:Q)="","",LOOKUP($A11,'Stammdaten HF'!$A:A,'Stammdaten HF'!$Q:Q)) ->  | N11: =IF(LOOKUP($A11,'Stammdaten HF'!$A:A,'Stammdaten HF'!$R:R)="","",LOOKUP($A11,'Stammdaten HF'!$A:A,'Stammdaten HF'!$R:R)) ->  | O11: =IF(LOOKUP($A11,'Stammdaten HF'!$A:A,'Stammdaten HF'!$F:F)="","",LOOKUP($A11,'Stammdaten HF'!$A:A,'Stammdaten HF'!$F:F)) ->  | R11: =INDEX(Organisation!$E$28:$E$58,MATCH(D11,Organisation!$C$26:$C$56,)) ->  | U11: FALSE | V11: J | W11: J | X11: J | Z11: =INDEX(Organisation!$D$26:$D$56,MATCH(D11,Organisation!$C$26:$C$56,)) -> 
A12: 11 | D12: =IF(LOOKUP($A12,'Stammdaten HF'!$A:A,'Stammdaten HF'!$C:C)="","",LOOKUP($A12,'Stammdaten HF'!$A:A,'Stammdaten HF'!$C:C)) ->  | K12: =IF(LOOKUP($A12,'Stammdaten HF'!$A:A,'Stammdaten HF'!$D:D)="","",LOOKUP($A12,'Stammdaten HF'!$A:A,'Stammdaten HF'!$D:D)) ->  | L12: =IF(LOOKUP($A12,'Stammdaten HF'!$A:A,'Stammdaten HF'!$E:E)="","",LOOKUP($A12,'Stammdaten HF'!$A:A,'Stammdaten HF'!$E:E)) ->  | M12: =IF(LOOKUP($A12,'Stammdaten HF'!$A:A,'Stammdaten HF'!$Q:Q)="","",LOOKUP($A12,'Stammdaten HF'!$A:A,'Stammdaten HF'!$Q:Q)) ->  | N12: =IF(LOOKUP($A12,'Stammdaten HF'!$A:A,'Stammdaten HF'!$R:R)="","",LOOKUP($A12,'Stammdaten HF'!$A:A,'Stammdaten HF'!$R:R)) ->  | O12: =IF(LOOKUP($A12,'Stammdaten HF'!$A:A,'Stammdaten HF'!$F:F)="","",LOOKUP($A12,'Stammdaten HF'!$A:A,'Stammdaten HF'!$F:F)) ->  | R12: =INDEX(Organisation!$E$28:$E$58,MATCH(D12,Organisation!$C$26:$C$56,)) ->  | U12: FALSE | V12: J | W12: J | X12: J | Z12: =INDEX(Organisation!$D$26:$D$56,MATCH(D12,Organisation!$C$26:$C$56,)) -> 
A13: 12 | D13: =IF(LOOKUP($A13,'Stammdaten HF'!$A:A,'Stammdaten HF'!$C:C)="","",LOOKUP($A13,'Stammdaten HF'!$A:A,'Stammdaten HF'!$C:C)) ->  | K13: =IF(LOOKUP($A13,'Stammdaten HF'!$A:A,'Stammdaten HF'!$D:D)="","",LOOKUP($A13,'Stammdaten HF'!$A:A,'Stammdaten HF'!$D:D)) ->  | L13: =IF(LOOKUP($A13,'Stammdaten HF'!$A:A,'Stammdaten HF'!$E:E)="","",LOOKUP($A13,'Stammdaten HF'!$A:A,'Stammdaten HF'!$E:E)) ->  | M13: =IF(LOOKUP($A13,'Stammdaten HF'!$A:A,'Stammdaten HF'!$Q:Q)="","",LOOKUP($A13,'Stammdaten HF'!$A:A,'Stammdaten HF'!$Q:Q)) ->  | N13: =IF(LOOKUP($A13,'Stammdaten HF'!$A:A,'Stammdaten HF'!$R:R)="","",LOOKUP($A13,'Stammdaten HF'!$A:A,'Stammdaten HF'!$R:R)) ->  | O13: =IF(LOOKUP($A13,'Stammdaten HF'!$A:A,'Stammdaten HF'!$F:F)="","",LOOKUP($A13,'Stammdaten HF'!$A:A,'Stammdaten HF'!$F:F)) ->  | R13: =INDEX(Organisation!$E$28:$E$58,MATCH(D13,Organisation!$C$26:$C$56,)) ->  | U13: FALSE | V13: J | W13: J | X13: J | Z13: =INDEX(Organisation!$D$26:$D$56,MATCH(D13,Organisation!$C$26:$C$56,)) -> 
A14: 13 | D14: =IF(LOOKUP($A14,'Stammdaten HF'!$A:A,'Stammdaten HF'!$C:C)="","",LOOKUP($A14,'Stammdaten HF'!$A:A,'Stammdaten HF'!$C:C)) ->  | K14: =IF(LOOKUP($A14,'Stammdaten HF'!$A:A,'Stammdaten HF'!$D:D)="","",LOOKUP($A14,'Stammdaten HF'!$A:A,'Stammdaten HF'!$D:D)) ->  | L14: =IF(LOOKUP($A14,'Stammdaten HF'!$A:A,'Stammdaten HF'!$E:E)="","",LOOKUP($A14,'Stammdaten HF'!$A:A,'Stammdaten HF'!$E:E)) ->  | M14: =IF(LOOKUP($A14,'Stammdaten HF'!$A:A,'Stammdaten HF'!$Q:Q)="","",LOOKUP($A14,'Stammdaten HF'!$A:A,'Stammdaten HF'!$Q:Q)) ->  | N14: =IF(LOOKUP($A14,'Stammdaten HF'!$A:A,'Stammdaten HF'!$R:R)="","",LOOKUP($A14,'Stammdaten HF'!$A:A,'Stammdaten HF'!$R:R)) ->  | O14: =IF(LOOKUP($A14,'Stammdaten HF'!$A:A,'Stammdaten HF'!$F:F)="","",LOOKUP($A14,'Stammdaten HF'!$A:A,'Stammdaten HF'!$F:F)) ->  | R14: =INDEX(Organisation!$E$28:$E$58,MATCH(D14,Organisation!$C$26:$C$56,)) ->  | U14: FALSE | V14: J | W14: J | X14: J | Z14: =INDEX(Organisation!$D$26:$D$56,MATCH(D14,Organisation!$C$26:$C$56,)) -> 
A15: 14 | D15: =IF(LOOKUP($A15,'Stammdaten HF'!$A:A,'Stammdaten HF'!$C:C)="","",LOOKUP($A15,'Stammdaten HF'!$A:A,'Stammdaten HF'!$C:C)) ->  | K15: =IF(LOOKUP($A15,'Stammdaten HF'!$A:A,'Stammdaten HF'!$D:D)="","",LOOKUP($A15,'Stammdaten HF'!$A:A,'Stammdaten HF'!$D:D)) ->  | L15: =IF(LOOKUP($A15,'Stammdaten HF'!$A:A,'Stammdaten HF'!$E:E)="","",LOOKUP($A15,'Stammdaten HF'!$A:A,'Stammdaten HF'!$E:E)) ->  | M15: =IF(LOOKUP($A15,'Stammdaten HF'!$A:A,'Stammdaten HF'!$Q:Q)="","",LOOKUP($A15,'Stammdaten HF'!$A:A,'Stammdaten HF'!$Q:Q)) ->  | N15: =IF(LOOKUP($A15,'Stammdaten HF'!$A:A,'Stammdaten HF'!$R:R)="","",LOOKUP($A15,'Stammdaten HF'!$A:A,'Stammdaten HF'!$R:R)) ->  | O15: =IF(LOOKUP($A15,'Stammdaten HF'!$A:A,'Stammdaten HF'!$F:F)="","",LOOKUP($A15,'Stammdaten HF'!$A:A,'Stammdaten HF'!$F:F)) ->  | R15: =INDEX(Organisation!$E$28:$E$58,MATCH(D15,Organisation!$C$26:$C$56,)) ->  | U15: FALSE | V15: J | W15: J | X15: J | Z15: =INDEX(Organisation!$D$26:$D$56,MATCH(D15,Organisation!$C$26:$C$56,)) -> 
A16: 15 | D16: =IF(LOOKUP($A16,'Stammdaten HF'!$A:A,'Stammdaten HF'!$C:C)="","",LOOKUP($A16,'Stammdaten HF'!$A:A,'Stammdaten HF'!$C:C)) ->  | K16: =IF(LOOKUP($A16,'Stammdaten HF'!$A:A,'Stammdaten HF'!$D:D)="","",LOOKUP($A16,'Stammdaten HF'!$A:A,'Stammdaten HF'!$D:D)) ->  | L16: =IF(LOOKUP($A16,'Stammdaten HF'!$A:A,'Stammdaten HF'!$E:E)="","",LOOKUP($A16,'Stammdaten HF'!$A:A,'Stammdaten HF'!$E:E)) ->  | M16: =IF(LOOKUP($A16,'Stammdaten HF'!$A:A,'Stammdaten HF'!$Q:Q)="","",LOOKUP($A16,'Stammdaten HF'!$A:A,'Stammdaten HF'!$Q:Q)) ->  | N16: =IF(LOOKUP($A16,'Stammdaten HF'!$A:A,'Stammdaten HF'!$R:R)="","",LOOKUP($A16,'Stammdaten HF'!$A:A,'Stammdaten HF'!$R:R)) ->  | O16: =IF(LOOKUP($A16,'Stammdaten HF'!$A:A,'Stammdaten HF'!$F:F)="","",LOOKUP($A16,'Stammdaten HF'!$A:A,'Stammdaten HF'!$F:F)) ->  | R16: =INDEX(Organisation!$E$28:$E$58,MATCH(D16,Organisation!$C$26:$C$56,)) ->  | U16: FALSE | V16: J | W16: J | X16: J | Z16: =INDEX(Organisation!$D$26:$D$56,MATCH(D16,Organisation!$C$26:$C$56,)) -> 
A17: 16 | D17: =IF(LOOKUP($A17,'Stammdaten HF'!$A:A,'Stammdaten HF'!$C:C)="","",LOOKUP($A17,'Stammdaten HF'!$A:A,'Stammdaten HF'!$C:C)) ->  | K17: =IF(LOOKUP($A17,'Stammdaten HF'!$A:A,'Stammdaten HF'!$D:D)="","",LOOKUP($A17,'Stammdaten HF'!$A:A,'Stammdaten HF'!$D:D)) ->  | L17: =IF(LOOKUP($A17,'Stammdaten HF'!$A:A,'Stammdaten HF'!$E:E)="","",LOOKUP($A17,'Stammdaten HF'!$A:A,'Stammdaten HF'!$E:E)) ->  | M17: =IF(LOOKUP($A17,'Stammdaten HF'!$A:A,'Stammdaten HF'!$Q:Q)="","",LOOKUP($A17,'Stammdaten HF'!$A:A,'Stammdaten HF'!$Q:Q)) ->  | N17: =IF(LOOKUP($A17,'Stammdaten HF'!$A:A,'Stammdaten HF'!$R:R)="","",LOOKUP($A17,'Stammdaten HF'!$A:A,'Stammdaten HF'!$R:R)) ->  | O17: =IF(LOOKUP($A17,'Stammdaten HF'!$A:A,'Stammdaten HF'!$F:F)="","",LOOKUP($A17,'Stammdaten HF'!$A:A,'Stammdaten HF'!$F:F)) ->  | R17: =INDEX(Organisation!$E$28:$E$58,MATCH(D17,Organisation!$C$26:$C$56,)) ->  | U17: FALSE | V17: J | W17: J | X17: J | Z17: =INDEX(Organisation!$D$26:$D$56,MATCH(D17,Organisation!$C$26:$C$56,)) -> 
A18: 17 | D18: =IF(LOOKUP($A18,'Stammdaten HF'!$A:A,'Stammdaten HF'!$C:C)="","",LOOKUP($A18,'Stammdaten HF'!$A:A,'Stammdaten HF'!$C:C)) ->  | K18: =IF(LOOKUP($A18,'Stammdaten HF'!$A:A,'Stammdaten HF'!$D:D)="","",LOOKUP($A18,'Stammdaten HF'!$A:A,'Stammdaten HF'!$D:D)) ->  | L18: =IF(LOOKUP($A18,'Stammdaten HF'!$A:A,'Stammdaten HF'!$E:E)="","",LOOKUP($A18,'Stammdaten HF'!$A:A,'Stammdaten HF'!$E:E)) ->  | M18: =IF(LOOKUP($A18,'Stammdaten HF'!$A:A,'Stammdaten HF'!$Q:Q)="","",LOOKUP($A18,'Stammdaten HF'!$A:A,'Stammdaten HF'!$Q:Q)) ->  | N18: =IF(LOOKUP($A18,'Stammdaten HF'!$A:A,'Stammdaten HF'!$R:R)="","",LOOKUP($A18,'Stammdaten HF'!$A:A,'Stammdaten HF'!$R:R)) ->  | O18: =IF(LOOKUP($A18,'Stammdaten HF'!$A:A,'Stammdaten HF'!$F:F)="","",LOOKUP($A18,'Stammdaten HF'!$A:A,'Stammdaten HF'!$F:F)) ->  | R18: =INDEX(Organisation!$E$28:$E$58,MATCH(D18,Organisation!$C$26:$C$56,)) ->  | T18: =IF(I18="","",IF(Z18=300,IF(OR(E18<70,F18<70,G18<70),"N","J"),"J")) ->  | U18: FALSE | V18: J | W18: J | X18: J | Z18: =INDEX(Organisation!$D$26:$D$56,MATCH(D18,Organisation!$C$26:$C$56,)) -> 
A19: 18 | D19: =IF(LOOKUP($A19,'Stammdaten HF'!$A:A,'Stammdaten HF'!$C:C)="","",LOOKUP($A19,'Stammdaten HF'!$A:A,'Stammdaten HF'!$C:C)) ->  | K19: =IF(LOOKUP($A19,'Stammdaten HF'!$A:A,'Stammdaten HF'!$D:D)="","",LOOKUP($A19,'Stammdaten HF'!$A:A,'Stammdaten HF'!$D:D)) ->  | L19: =IF(LOOKUP($A19,'Stammdaten HF'!$A:A,'Stammdaten HF'!$E:E)="","",LOOKUP($A19,'Stammdaten HF'!$A:A,'Stammdaten HF'!$E:E)) ->  | M19: =IF(LOOKUP($A19,'Stammdaten HF'!$A:A,'Stammdaten HF'!$Q:Q)="","",LOOKUP($A19,'Stammdaten HF'!$A:A,'Stammdaten HF'!$Q:Q)) ->  | N19: =IF(LOOKUP($A19,'Stammdaten HF'!$A:A,'Stammdaten HF'!$R:R)="","",LOOKUP($A19,'Stammdaten HF'!$A:A,'Stammdaten HF'!$R:R)) ->  | O19: =IF(LOOKUP($A19,'Stammdaten HF'!$A:A,'Stammdaten HF'!$F:F)="","",LOOKUP($A19,'Stammdaten HF'!$A:A,'Stammdaten HF'!$F:F)) ->  | R19: =INDEX(Organisation!$E$28:$E$58,MATCH(D19,Organisation!$C$26:$C$56,)) ->  | U19: FALSE | V19: J | W19: J | X19: J | Z19: =INDEX(Organisation!$D$26:$D$56,MATCH(D19,Organisation!$C$26:$C$56,)) -> 
A20: 19 | D20: =IF(LOOKUP($A20,'Stammdaten HF'!$A:A,'Stammdaten HF'!$C:C)="","",LOOKUP($A20,'Stammdaten HF'!$A:A,'Stammdaten HF'!$C:C)) ->  | K20: =IF(LOOKUP($A20,'Stammdaten HF'!$A:A,'Stammdaten HF'!$D:D)="","",LOOKUP($A20,'Stammdaten HF'!$A:A,'Stammdaten HF'!$D:D)) ->  | L20: =IF(LOOKUP($A20,'Stammdaten HF'!$A:A,'Stammdaten HF'!$E:E)="","",LOOKUP($A20,'Stammdaten HF'!$A:A,'Stammdaten HF'!$E:E)) ->  | M20: =IF(LOOKUP($A20,'Stammdaten HF'!$A:A,'Stammdaten HF'!$Q:Q)="","",LOOKUP($A20,'Stammdaten HF'!$A:A,'Stammdaten HF'!$Q:Q)) ->  | N20: =IF(LOOKUP($A20,'Stammdaten HF'!$A:A,'Stammdaten HF'!$R:R)="","",LOOKUP($A20,'Stammdaten HF'!$A:A,'Stammdaten HF'!$R:R)) ->  | O20: =IF(LOOKUP($A20,'Stammdaten HF'!$A:A,'Stammdaten HF'!$F:F)="","",LOOKUP($A20,'Stammdaten HF'!$A:A,'Stammdaten HF'!$F:F)) ->  | Q20: =IF(D20="","",IF(OR(D20="BH",D20="BH/SK",D20="SK"),IF(I20>=42,"best","nb"),IF(D20="Team-Test",IF(I20<80,"nb",P20),IF(OR(D20="IFH 1",D20="IFH 2", D20="GPr 3",D20= "GPr 2",D20= "GPr 1", D20="IGP FH"),P20,IF(T20="J",P20,"mgh"))))) ->  | R20: =INDEX(Organisation!$E$28:$E$58,MATCH(D20,Organisation!$C$26:$C$56,)) ->  | U20: FALSE | Z20: =INDEX(Organisation!$D$26:$D$56,MATCH(D20,Organisation!$C$26:$C$56,)) -> 
A21: 20 | D21: =IF(LOOKUP($A21,'Stammdaten HF'!$A:A,'Stammdaten HF'!$C:C)="","",LOOKUP($A21,'Stammdaten HF'!$A:A,'Stammdaten HF'!$C:C)) ->  | K21: =IF(LOOKUP($A21,'Stammdaten HF'!$A:A,'Stammdaten HF'!$D:D)="","",LOOKUP($A21,'Stammdaten HF'!$A:A,'Stammdaten HF'!$D:D)) ->  | L21: =IF(LOOKUP($A21,'Stammdaten HF'!$A:A,'Stammdaten HF'!$E:E)="","",LOOKUP($A21,'Stammdaten HF'!$A:A,'Stammdaten HF'!$E:E)) ->  | M21: =IF(LOOKUP($A21,'Stammdaten HF'!$A:A,'Stammdaten HF'!$Q:Q)="","",LOOKUP($A21,'Stammdaten HF'!$A:A,'Stammdaten HF'!$Q:Q)) ->  | N21: =IF(LOOKUP($A21,'Stammdaten HF'!$A:A,'Stammdaten HF'!$R:R)="","",LOOKUP($A21,'Stammdaten HF'!$A:A,'Stammdaten HF'!$R:R)) ->  | O21: =IF(LOOKUP($A21,'Stammdaten HF'!$A:A,'Stammdaten HF'!$F:F)="","",LOOKUP($A21,'Stammdaten HF'!$A:A,'Stammdaten HF'!$F:F)) ->  | R21: =INDEX(Organisation!$E$28:$E$58,MATCH(D21,Organisation!$C$26:$C$56,)) ->  | U21: FALSE | Z21: =INDEX(Organisation!$D$26:$D$56,MATCH(D21,Organisation!$C$26:$C$56,)) -> 
A22: 21 | D22: =IF(LOOKUP($A22,'Stammdaten HF'!$A:A,'Stammdaten HF'!$C:C)="","",LOOKUP($A22,'Stammdaten HF'!$A:A,'Stammdaten HF'!$C:C)) ->  | K22: =IF(LOOKUP($A22,'Stammdaten HF'!$A:A,'Stammdaten HF'!$D:D)="","",LOOKUP($A22,'Stammdaten HF'!$A:A,'Stammdaten HF'!$D:D)) ->  | L22: =IF(LOOKUP($A22,'Stammdaten HF'!$A:A,'Stammdaten HF'!$E:E)="","",LOOKUP($A22,'Stammdaten HF'!$A:A,'Stammdaten HF'!$E:E)) ->  | M22: =IF(LOOKUP($A22,'Stammdaten HF'!$A:A,'Stammdaten HF'!$Q:Q)="","",LOOKUP($A22,'Stammdaten HF'!$A:A,'Stammdaten HF'!$Q:Q)) ->  | N22: =IF(LOOKUP($A22,'Stammdaten HF'!$A:A,'Stammdaten HF'!$R:R)="","",LOOKUP($A22,'Stammdaten HF'!$A:A,'Stammdaten HF'!$R:R)) ->  | O22: =IF(LOOKUP($A22,'Stammdaten HF'!$A:A,'Stammdaten HF'!$F:F)="","",LOOKUP($A22,'Stammdaten HF'!$A:A,'Stammdaten HF'!$F:F)) ->  | R22: =INDEX(Organisation!$E$28:$E$58,MATCH(D22,Organisation!$C$26:$C$56,)) ->  | U22: FALSE | Z22: =INDEX(Organisation!$D$26:$D$56,MATCH(D22,Organisation!$C$26:$C$56,)) -> 
A23: 22 | D23: =IF(LOOKUP($A23,'Stammdaten HF'!$A:A,'Stammdaten HF'!$C:C)="","",LOOKUP($A23,'Stammdaten HF'!$A:A,'Stammdaten HF'!$C:C)) ->  | K23: =IF(LOOKUP($A23,'Stammdaten HF'!$A:A,'Stammdaten HF'!$D:D)="","",LOOKUP($A23,'Stammdaten HF'!$A:A,'Stammdaten HF'!$D:D)) ->  | L23: =IF(LOOKUP($A23,'Stammdaten HF'!$A:A,'Stammdaten HF'!$E:E)="","",LOOKUP($A23,'Stammdaten HF'!$A:A,'Stammdaten HF'!$E:E)) ->  | M23: =IF(LOOKUP($A23,'Stammdaten HF'!$A:A,'Stammdaten HF'!$Q:Q)="","",LOOKUP($A23,'Stammdaten HF'!$A:A,'Stammdaten HF'!$Q:Q)) ->  | N23: =IF(LOOKUP($A23,'Stammdaten HF'!$A:A,'Stammdaten HF'!$R:R)="","",LOOKUP($A23,'Stammdaten HF'!$A:A,'Stammdaten HF'!$R:R)) ->  | O23: =IF(LOOKUP($A23,'Stammdaten HF'!$A:A,'Stammdaten HF'!$F:F)="","",LOOKUP($A23,'Stammdaten HF'!$A:A,'Stammdaten HF'!$F:F)) ->  | R23: =INDEX(Organisation!$E$28:$E$58,MATCH(D23,Organisation!$C$26:$C$56,)) ->  | U23: FALSE | Z23: =INDEX(Organisation!$D$26:$D$56,MATCH(D23,Organisation!$C$26:$C$56,)) -> 
A24: 23 | D24: =IF(LOOKUP($A24,'Stammdaten HF'!$A:A,'Stammdaten HF'!$C:C)="","",LOOKUP($A24,'Stammdaten HF'!$A:A,'Stammdaten HF'!$C:C)) ->  | K24: =IF(LOOKUP($A24,'Stammdaten HF'!$A:A,'Stammdaten HF'!$D:D)="","",LOOKUP($A24,'Stammdaten HF'!$A:A,'Stammdaten HF'!$D:D)) ->  | L24: =IF(LOOKUP($A24,'Stammdaten HF'!$A:A,'Stammdaten HF'!$E:E)="","",LOOKUP($A24,'Stammdaten HF'!$A:A,'Stammdaten HF'!$E:E)) ->  | M24: =IF(LOOKUP($A24,'Stammdaten HF'!$A:A,'Stammdaten HF'!$Q:Q)="","",LOOKUP($A24,'Stammdaten HF'!$A:A,'Stammdaten HF'!$Q:Q)) ->  | N24: =IF(LOOKUP($A24,'Stammdaten HF'!$A:A,'Stammdaten HF'!$R:R)="","",LOOKUP($A24,'Stammdaten HF'!$A:A,'Stammdaten HF'!$R:R)) ->  | O24: =IF(LOOKUP($A24,'Stammdaten HF'!$A:A,'Stammdaten HF'!$F:F)="","",LOOKUP($A24,'Stammdaten HF'!$A:A,'Stammdaten HF'!$F:F)) ->  | R24: =INDEX(Organisation!$E$28:$E$58,MATCH(D24,Organisation!$C$26:$C$56,)) ->  | U24: FALSE | Z24: =INDEX(Organisation!$D$26:$D$56,MATCH(D24,Organisation!$C$26:$C$56,)) -> 
A25: 24 | D25: =IF(LOOKUP($A25,'Stammdaten HF'!$A:A,'Stammdaten HF'!$C:C)="","",LOOKUP($A25,'Stammdaten HF'!$A:A,'Stammdaten HF'!$C:C)) ->  | K25: =IF(LOOKUP($A25,'Stammdaten HF'!$A:A,'Stammdaten HF'!$D:D)="","",LOOKUP($A25,'Stammdaten HF'!$A:A,'Stammdaten HF'!$D:D)) ->  | L25: =IF(LOOKUP($A25,'Stammdaten HF'!$A:A,'Stammdaten HF'!$E:E)="","",LOOKUP($A25,'Stammdaten HF'!$A:A,'Stammdaten HF'!$E:E)) ->  | M25: =IF(LOOKUP($A25,'Stammdaten HF'!$A:A,'Stammdaten HF'!$Q:Q)="","",LOOKUP($A25,'Stammdaten HF'!$A:A,'Stammdaten HF'!$Q:Q)) ->  | N25: =IF(LOOKUP($A25,'Stammdaten HF'!$A:A,'Stammdaten HF'!$R:R)="","",LOOKUP($A25,'Stammdaten HF'!$A:A,'Stammdaten HF'!$R:R)) ->  | O25: =IF(LOOKUP($A25,'Stammdaten HF'!$A:A,'Stammdaten HF'!$F:F)="","",LOOKUP($A25,'Stammdaten HF'!$A:A,'Stammdaten HF'!$F:F)) ->  | R25: =INDEX(Organisation!$E$28:$E$58,MATCH(D25,Organisation!$C$26:$C$56,)) ->  | U25: FALSE | Z25: =INDEX(Organisation!$D$26:$D$56,MATCH(D25,Organisation!$C$26:$C$56,)) -> 
A26: 25 | D26: =IF(LOOKUP($A26,'Stammdaten HF'!$A:A,'Stammdaten HF'!$C:C)="","",LOOKUP($A26,'Stammdaten HF'!$A:A,'Stammdaten HF'!$C:C)) ->  | K26: =IF(LOOKUP($A26,'Stammdaten HF'!$A:A,'Stammdaten HF'!$D:D)="","",LOOKUP($A26,'Stammdaten HF'!$A:A,'Stammdaten HF'!$D:D)) ->  | L26: =IF(LOOKUP($A26,'Stammdaten HF'!$A:A,'Stammdaten HF'!$E:E)="","",LOOKUP($A26,'Stammdaten HF'!$A:A,'Stammdaten HF'!$E:E)) ->  | M26: =IF(LOOKUP($A26,'Stammdaten HF'!$A:A,'Stammdaten HF'!$Q:Q)="","",LOOKUP($A26,'Stammdaten HF'!$A:A,'Stammdaten HF'!$Q:Q)) ->  | N26: =IF(LOOKUP($A26,'Stammdaten HF'!$A:A,'Stammdaten HF'!$R:R)="","",LOOKUP($A26,'Stammdaten HF'!$A:A,'Stammdaten HF'!$R:R)) ->  | O26: =IF(LOOKUP($A26,'Stammdaten HF'!$A:A,'Stammdaten HF'!$F:F)="","",LOOKUP($A26,'Stammdaten HF'!$A:A,'Stammdaten HF'!$F:F)) ->  | R26: =INDEX(Organisation!$E$28:$E$58,MATCH(D26,Organisation!$C$26:$C$56,)) ->  | U26: FALSE | Z26: =INDEX(Organisation!$D$26:$D$56,MATCH(D26,Organisation!$C$26:$C$56,)) -> 
A27: 26 | D27: =IF(LOOKUP($A27,'Stammdaten HF'!$A:A,'Stammdaten HF'!$C:C)="","",LOOKUP($A27,'Stammdaten HF'!$A:A,'Stammdaten HF'!$C:C)) ->  | K27: =IF(LOOKUP($A27,'Stammdaten HF'!$A:A,'Stammdaten HF'!$D:D)="","",LOOKUP($A27,'Stammdaten HF'!$A:A,'Stammdaten HF'!$D:D)) ->  | L27: =IF(LOOKUP($A27,'Stammdaten HF'!$A:A,'Stammdaten HF'!$E:E)="","",LOOKUP($A27,'Stammdaten HF'!$A:A,'Stammdaten HF'!$E:E)) ->  | M27: =IF(LOOKUP($A27,'Stammdaten HF'!$A:A,'Stammdaten HF'!$Q:Q)="","",LOOKUP($A27,'Stammdaten HF'!$A:A,'Stammdaten HF'!$Q:Q)) ->  | N27: =IF(LOOKUP($A27,'Stammdaten HF'!$A:A,'Stammdaten HF'!$R:R)="","",LOOKUP($A27,'Stammdaten HF'!$A:A,'Stammdaten HF'!$R:R)) ->  | O27: =IF(LOOKUP($A27,'Stammdaten HF'!$A:A,'Stammdaten HF'!$F:F)="","",LOOKUP($A27,'Stammdaten HF'!$A:A,'Stammdaten HF'!$F:F)) ->  | R27: =INDEX(Organisation!$E$28:$E$58,MATCH(D27,Organisation!$C$26:$C$56,)) ->  | U27: FALSE | Z27: =INDEX(Organisation!$D$26:$D$56,MATCH(D27,Organisation!$C$26:$C$56,)) -> 
A28: 27 | D28: =IF(LOOKUP($A28,'Stammdaten HF'!$A:A,'Stammdaten HF'!$C:C)="","",LOOKUP($A28,'Stammdaten HF'!$A:A,'Stammdaten HF'!$C:C)) ->  | K28: =IF(LOOKUP($A28,'Stammdaten HF'!$A:A,'Stammdaten HF'!$D:D)="","",LOOKUP($A28,'Stammdaten HF'!$A:A,'Stammdaten HF'!$D:D)) ->  | L28: =IF(LOOKUP($A28,'Stammdaten HF'!$A:A,'Stammdaten HF'!$E:E)="","",LOOKUP($A28,'Stammdaten HF'!$A:A,'Stammdaten HF'!$E:E)) ->  | M28: =IF(LOOKUP($A28,'Stammdaten HF'!$A:A,'Stammdaten HF'!$Q:Q)="","",LOOKUP($A28,'Stammdaten HF'!$A:A,'Stammdaten HF'!$Q:Q)) ->  | N28: =IF(LOOKUP($A28,'Stammdaten HF'!$A:A,'Stammdaten HF'!$R:R)="","",LOOKUP($A28,'Stammdaten HF'!$A:A,'Stammdaten HF'!$R:R)) ->  | O28: =IF(LOOKUP($A28,'Stammdaten HF'!$A:A,'Stammdaten HF'!$F:F)="","",LOOKUP($A28,'Stammdaten HF'!$A:A,'Stammdaten HF'!$F:F)) ->  | R28: =INDEX(Organisation!$E$28:$E$58,MATCH(D28,Organisation!$C$26:$C$56,)) ->  | U28: FALSE | Z28: =INDEX(Organisation!$D$26:$D$56,MATCH(D28,Organisation!$C$26:$C$56,)) -> 
A29: 28 | D29: =IF(LOOKUP($A29,'Stammdaten HF'!$A:A,'Stammdaten HF'!$C:C)="","",LOOKUP($A29,'Stammdaten HF'!$A:A,'Stammdaten HF'!$C:C)) ->  | K29: =IF(LOOKUP($A29,'Stammdaten HF'!$A:A,'Stammdaten HF'!$D:D)="","",LOOKUP($A29,'Stammdaten HF'!$A:A,'Stammdaten HF'!$D:D)) ->  | L29: =IF(LOOKUP($A29,'Stammdaten HF'!$A:A,'Stammdaten HF'!$E:E)="","",LOOKUP($A29,'Stammdaten HF'!$A:A,'Stammdaten HF'!$E:E)) ->  | M29: =IF(LOOKUP($A29,'Stammdaten HF'!$A:A,'Stammdaten HF'!$Q:Q)="","",LOOKUP($A29,'Stammdaten HF'!$A:A,'Stammdaten HF'!$Q:Q)) ->  | N29: =IF(LOOKUP($A29,'Stammdaten HF'!$A:A,'Stammdaten HF'!$R:R)="","",LOOKUP($A29,'Stammdaten HF'!$A:A,'Stammdaten HF'!$R:R)) ->  | O29: =IF(LOOKUP($A29,'Stammdaten HF'!$A:A,'Stammdaten HF'!$F:F)="","",LOOKUP($A29,'Stammdaten HF'!$A:A,'Stammdaten HF'!$F:F)) ->  | R29: =INDEX(Organisation!$E$28:$E$58,MATCH(D29,Organisation!$C$26:$C$56,)) ->  | U29: FALSE | Z29: =INDEX(Organisation!$D$26:$D$56,MATCH(D29,Organisation!$C$26:$C$56,)) -> 
A30: 29 | D30: =IF(LOOKUP($A30,'Stammdaten HF'!$A:A,'Stammdaten HF'!$C:C)="","",LOOKUP($A30,'Stammdaten HF'!$A:A,'Stammdaten HF'!$C:C)) ->  | K30: =IF(LOOKUP($A30,'Stammdaten HF'!$A:A,'Stammdaten HF'!$D:D)="","",LOOKUP($A30,'Stammdaten HF'!$A:A,'Stammdaten HF'!$D:D)) ->  | L30: =IF(LOOKUP($A30,'Stammdaten HF'!$A:A,'Stammdaten HF'!$E:E)="","",LOOKUP($A30,'Stammdaten HF'!$A:A,'Stammdaten HF'!$E:E)) ->  | M30: =IF(LOOKUP($A30,'Stammdaten HF'!$A:A,'Stammdaten HF'!$Q:Q)="","",LOOKUP($A30,'Stammdaten HF'!$A:A,'Stammdaten HF'!$Q:Q)) ->  | N30: =IF(LOOKUP($A30,'Stammdaten HF'!$A:A,'Stammdaten HF'!$R:R)="","",LOOKUP($A30,'Stammdaten HF'!$A:A,'Stammdaten HF'!$R:R)) ->  | O30: =IF(LOOKUP($A30,'Stammdaten HF'!$A:A,'Stammdaten HF'!$F:F)="","",LOOKUP($A30,'Stammdaten HF'!$A:A,'Stammdaten HF'!$F:F)) ->  | R30: =INDEX(Organisation!$E$28:$E$58,MATCH(D30,Organisation!$C$26:$C$56,)) ->  | U30: FALSE | Z30: =INDEX(Organisation!$D$26:$D$56,MATCH(D30,Organisation!$C$26:$C$56,)) -> 
A31: 30 | D31: =IF(LOOKUP($A31,'Stammdaten HF'!$A:A,'Stammdaten HF'!$C:C)="","",LOOKUP($A31,'Stammdaten HF'!$A:A,'Stammdaten HF'!$C:C)) ->  | K31: =IF(LOOKUP($A31,'Stammdaten HF'!$A:A,'Stammdaten HF'!$D:D)="","",LOOKUP($A31,'Stammdaten HF'!$A:A,'Stammdaten HF'!$D:D)) ->  | L31: =IF(LOOKUP($A31,'Stammdaten HF'!$A:A,'Stammdaten HF'!$E:E)="","",LOOKUP($A31,'Stammdaten HF'!$A:A,'Stammdaten HF'!$E:E)) ->  | M31: =IF(LOOKUP($A31,'Stammdaten HF'!$A:A,'Stammdaten HF'!$Q:Q)="","",LOOKUP($A31,'Stammdaten HF'!$A:A,'Stammdaten HF'!$Q:Q)) ->  | N31: =IF(LOOKUP($A31,'Stammdaten HF'!$A:A,'Stammdaten HF'!$R:R)="","",LOOKUP($A31,'Stammdaten HF'!$A:A,'Stammdaten HF'!$R:R)) ->  | O31: =IF(LOOKUP($A31,'Stammdaten HF'!$A:A,'Stammdaten HF'!$F:F)="","",LOOKUP($A31,'Stammdaten HF'!$A:A,'Stammdaten HF'!$F:F)) ->  | R31: =INDEX(Organisation!$E$28:$E$58,MATCH(D31,Organisation!$C$26:$C$56,)) ->  | U31: FALSE | Z31: =INDEX(Organisation!$D$26:$D$56,MATCH(D31,Organisation!$C$26:$C$56,)) -> 
A32: 31 | D32: =IF(LOOKUP($A32,'Stammdaten HF'!$A:A,'Stammdaten HF'!$C:C)="","",LOOKUP($A32,'Stammdaten HF'!$A:A,'Stammdaten HF'!$C:C)) ->  | K32: =IF(LOOKUP($A32,'Stammdaten HF'!$A:A,'Stammdaten HF'!$D:D)="","",LOOKUP($A32,'Stammdaten HF'!$A:A,'Stammdaten HF'!$D:D)) ->  | L32: =IF(LOOKUP($A32,'Stammdaten HF'!$A:A,'Stammdaten HF'!$E:E)="","",LOOKUP($A32,'Stammdaten HF'!$A:A,'Stammdaten HF'!$E:E)) ->  | M32: =IF(LOOKUP($A32,'Stammdaten HF'!$A:A,'Stammdaten HF'!$Q:Q)="","",LOOKUP($A32,'Stammdaten HF'!$A:A,'Stammdaten HF'!$Q:Q)) ->  | N32: =IF(LOOKUP($A32,'Stammdaten HF'!$A:A,'Stammdaten HF'!$R:R)="","",LOOKUP($A32,'Stammdaten HF'!$A:A,'Stammdaten HF'!$R:R)) ->  | O32: =IF(LOOKUP($A32,'Stammdaten HF'!$A:A,'Stammdaten HF'!$F:F)="","",LOOKUP($A32,'Stammdaten HF'!$A:A,'Stammdaten HF'!$F:F)) ->  | R32: =INDEX(Organisation!$E$28:$E$58,MATCH(D32,Organisation!$C$26:$C$56,)) ->  | U32: FALSE | Z32: =INDEX(Organisation!$D$26:$D$56,MATCH(D32,Organisation!$C$26:$C$56,)) -> 
A33: 32 | D33: =IF(LOOKUP($A33,'Stammdaten HF'!$A:A,'Stammdaten HF'!$C:C)="","",LOOKUP($A33,'Stammdaten HF'!$A:A,'Stammdaten HF'!$C:C)) ->  | K33: =IF(LOOKUP($A33,'Stammdaten HF'!$A:A,'Stammdaten HF'!$D:D)="","",LOOKUP($A33,'Stammdaten HF'!$A:A,'Stammdaten HF'!$D:D)) ->  | L33: =IF(LOOKUP($A33,'Stammdaten HF'!$A:A,'Stammdaten HF'!$E:E)="","",LOOKUP($A33,'Stammdaten HF'!$A:A,'Stammdaten HF'!$E:E)) ->  | M33: =IF(LOOKUP($A33,'Stammdaten HF'!$A:A,'Stammdaten HF'!$Q:Q)="","",LOOKUP($A33,'Stammdaten HF'!$A:A,'Stammdaten HF'!$Q:Q)) ->  | N33: =IF(LOOKUP($A33,'Stammdaten HF'!$A:A,'Stammdaten HF'!$R:R)="","",LOOKUP($A33,'Stammdaten HF'!$A:A,'Stammdaten HF'!$R:R)) ->  | O33: =IF(LOOKUP($A33,'Stammdaten HF'!$A:A,'Stammdaten HF'!$F:F)="","",LOOKUP($A33,'Stammdaten HF'!$A:A,'Stammdaten HF'!$F:F)) ->  | R33: =INDEX(Organisation!$E$28:$E$58,MATCH(D33,Organisation!$C$26:$C$56,)) ->  | U33: FALSE | Z33: =INDEX(Organisation!$D$26:$D$56,MATCH(D33,Organisation!$C$26:$C$56,)) -> 
A34: 33 | D34: =IF(LOOKUP($A34,'Stammdaten HF'!$A:A,'Stammdaten HF'!$C:C)="","",LOOKUP($A34,'Stammdaten HF'!$A:A,'Stammdaten HF'!$C:C)) ->  | K34: =IF(LOOKUP($A34,'Stammdaten HF'!$A:A,'Stammdaten HF'!$D:D)="","",LOOKUP($A34,'Stammdaten HF'!$A:A,'Stammdaten HF'!$D:D)) ->  | L34: =IF(LOOKUP($A34,'Stammdaten HF'!$A:A,'Stammdaten HF'!$E:E)="","",LOOKUP($A34,'Stammdaten HF'!$A:A,'Stammdaten HF'!$E:E)) ->  | M34: =IF(LOOKUP($A34,'Stammdaten HF'!$A:A,'Stammdaten HF'!$Q:Q)="","",LOOKUP($A34,'Stammdaten HF'!$A:A,'Stammdaten HF'!$Q:Q)) ->  | N34: =IF(LOOKUP($A34,'Stammdaten HF'!$A:A,'Stammdaten HF'!$R:R)="","",LOOKUP($A34,'Stammdaten HF'!$A:A,'Stammdaten HF'!$R:R)) ->  | O34: =IF(LOOKUP($A34,'Stammdaten HF'!$A:A,'Stammdaten HF'!$F:F)="","",LOOKUP($A34,'Stammdaten HF'!$A:A,'Stammdaten HF'!$F:F)) ->  | R34: =INDEX(Organisation!$E$28:$E$58,MATCH(D34,Organisation!$C$26:$C$56,)) ->  | U34: FALSE | Z34: =INDEX(Organisation!$D$26:$D$56,MATCH(D34,Organisation!$C$26:$C$56,)) -> 
A35: 34 | D35: =IF(LOOKUP($A35,'Stammdaten HF'!$A:A,'Stammdaten HF'!$C:C)="","",LOOKUP($A35,'Stammdaten HF'!$A:A,'Stammdaten HF'!$C:C)) ->  | K35: =IF(LOOKUP($A35,'Stammdaten HF'!$A:A,'Stammdaten HF'!$D:D)="","",LOOKUP($A35,'Stammdaten HF'!$A:A,'Stammdaten HF'!$D:D)) ->  | L35: =IF(LOOKUP($A35,'Stammdaten HF'!$A:A,'Stammdaten HF'!$E:E)="","",LOOKUP($A35,'Stammdaten HF'!$A:A,'Stammdaten HF'!$E:E)) ->  | M35: =IF(LOOKUP($A35,'Stammdaten HF'!$A:A,'Stammdaten HF'!$Q:Q)="","",LOOKUP($A35,'Stammdaten HF'!$A:A,'Stammdaten HF'!$Q:Q)) ->  | N35: =IF(LOOKUP($A35,'Stammdaten HF'!$A:A,'Stammdaten HF'!$R:R)="","",LOOKUP($A35,'Stammdaten HF'!$A:A,'Stammdaten HF'!$R:R)) ->  | O35: =IF(LOOKUP($A35,'Stammdaten HF'!$A:A,'Stammdaten HF'!$F:F)="","",LOOKUP($A35,'Stammdaten HF'!$A:A,'Stammdaten HF'!$F:F)) ->  | R35: =INDEX(Organisation!$E$28:$E$58,MATCH(D35,Organisation!$C$26:$C$56,)) ->  | U35: FALSE | Z35: =INDEX(Organisation!$D$26:$D$56,MATCH(D35,Organisation!$C$26:$C$56,)) -> 
A36: 35 | D36: =IF(LOOKUP($A36,'Stammdaten HF'!$A:A,'Stammdaten HF'!$C:C)="","",LOOKUP($A36,'Stammdaten HF'!$A:A,'Stammdaten HF'!$C:C)) ->  | K36: =IF(LOOKUP($A36,'Stammdaten HF'!$A:A,'Stammdaten HF'!$D:D)="","",LOOKUP($A36,'Stammdaten HF'!$A:A,'Stammdaten HF'!$D:D)) ->  | L36: =IF(LOOKUP($A36,'Stammdaten HF'!$A:A,'Stammdaten HF'!$E:E)="","",LOOKUP($A36,'Stammdaten HF'!$A:A,'Stammdaten HF'!$E:E)) ->  | M36: =IF(LOOKUP($A36,'Stammdaten HF'!$A:A,'Stammdaten HF'!$Q:Q)="","",LOOKUP($A36,'Stammdaten HF'!$A:A,'Stammdaten HF'!$Q:Q)) ->  | N36: =IF(LOOKUP($A36,'Stammdaten HF'!$A:A,'Stammdaten HF'!$R:R)="","",LOOKUP($A36,'Stammdaten HF'!$A:A,'Stammdaten HF'!$R:R)) ->  | O36: =IF(LOOKUP($A36,'Stammdaten HF'!$A:A,'Stammdaten HF'!$F:F)="","",LOOKUP($A36,'Stammdaten HF'!$A:A,'Stammdaten HF'!$F:F)) ->  | R36: =INDEX(Organisation!$E$28:$E$58,MATCH(D36,Organisation!$C$26:$C$56,)) ->  | U36: FALSE | Z36: =INDEX(Organisation!$D$26:$D$56,MATCH(D36,Organisation!$C$26:$C$56,)) -> 
A37: 36 | D37: =IF(LOOKUP($A37,'Stammdaten HF'!$A:A,'Stammdaten HF'!$C:C)="","",LOOKUP($A37,'Stammdaten HF'!$A:A,'Stammdaten HF'!$C:C)) ->  | K37: =IF(LOOKUP($A37,'Stammdaten HF'!$A:A,'Stammdaten HF'!$D:D)="","",LOOKUP($A37,'Stammdaten HF'!$A:A,'Stammdaten HF'!$D:D)) ->  | L37: =IF(LOOKUP($A37,'Stammdaten HF'!$A:A,'Stammdaten HF'!$E:E)="","",LOOKUP($A37,'Stammdaten HF'!$A:A,'Stammdaten HF'!$E:E)) ->  | M37: =IF(LOOKUP($A37,'Stammdaten HF'!$A:A,'Stammdaten HF'!$Q:Q)="","",LOOKUP($A37,'Stammdaten HF'!$A:A,'Stammdaten HF'!$Q:Q)) ->  | N37: =IF(LOOKUP($A37,'Stammdaten HF'!$A:A,'Stammdaten HF'!$R:R)="","",LOOKUP($A37,'Stammdaten HF'!$A:A,'Stammdaten HF'!$R:R)) ->  | O37: =IF(LOOKUP($A37,'Stammdaten HF'!$A:A,'Stammdaten HF'!$F:F)="","",LOOKUP($A37,'Stammdaten HF'!$A:A,'Stammdaten HF'!$F:F)) ->  | R37: =INDEX(Organisation!$E$28:$E$58,MATCH(D37,Organisation!$C$26:$C$56,)) ->  | U37: FALSE | Z37: =INDEX(Organisation!$D$26:$D$56,MATCH(D37,Organisation!$C$26:$C$56,)) -> 
I38: =IF(OR(E38="",F38="",G38=""),"",SUM(E38,F38,G38)) ->  | J38: =IF(I38="","",IF(T38="J",IF(I38>=286,"V",IF(I38>=270,"SG",IF(I38>=240,"G",IF(I38>=210,"B","M")))),"M")) ->  | Q38: =IF(D38="","",IF(OR(D38="BH",D38="BH/SK",D38="SK"),IF(I38>=42,"best","nb"),IF(D38="Team-Test",IF(I38<80,"nb",P38),IF(T38="J",P38,"mgh")))) ->  | T38: =IF(I38="","",IF(OR(E38<70,F38<70,G38<70),"N","J")) -> 
Q39: =IF(D39="","",IF(OR(D39="BH",D39="BH/SK",D39="SK"),IF(I39>=42,"best","nb"),IF(D39="Team-Test",IF(I39<80,"nb",P39),IF(T39="J",P39,"mgh")))) -> 

Sheet Ergebnis
A1: Nr. | B1: Hundeführer Verein | C1: Hund Rasse | D1: Prf.Stufe | E1: A | F1: B | G1: C | H1: Gesamt | I1: Note | J1: Pl. | AP1: Sortziff
A2: =Auswertung!A2 -> 1 | B2: =Auswertung!B2 -> Andreas Mustermax sspv MA | C2: =Auswertung!C2 -> Axel Mixy | D2: =Auswertung!D2 -> IFH 1 | E2: =IF(Auswertung!E2="","",Auswertung!E2) -> 84 | F2: =IF(Auswertung!F2="","",Auswertung!F2) -> 90 | G2: =IF(Auswertung!G2="","",Auswertung!G2) -> 91 | H2: =IF(Auswertung!I2="","",Auswertung!I2) -> 265 | I2: =IF(Auswertung!J2="","",Auswertung!J2) -> V | AP2: =Auswertung!R2 -> 2
A3: =Auswertung!A3 -> 2 | B3: =Auswertung!B3 -> Marion Fröhlich VfH Ilvesheim | C3: =Auswertung!C3 -> Trigger Hollands | D3: =Auswertung!D3 -> BH/SK | E3: =IF(Auswertung!E3="","",Auswertung!E3) ->  | F3: =IF(Auswertung!F3="","",Auswertung!F3) ->  | G3: =IF(Auswertung!G3="","",Auswertung!G3) ->  | H3: =IF(Auswertung!I3="","",Auswertung!I3) ->  | I3: =IF(Auswertung!J3="","",Auswertung!J3) ->  | AP3: =Auswertung!R3 -> 9
A4: =Auswertung!A4 -> 3 | B4: =Auswertung!B4 -> Florian Hintersee HSV Frankenthal | C4: =Auswertung!C4 -> Fräulein Meier Mischling | D4: =Auswertung!D4 -> GPr 2 | E4: =IF(Auswertung!E4="","",Auswertung!E4) ->  | F4: =IF(Auswertung!F4="","",Auswertung!F4) -> 88 | G4: =IF(Auswertung!G4="","",Auswertung!G4) -> 92 | H4: =IF(Auswertung!I4="","",Auswertung!I4) -> 180 | I4: =IF(Auswertung!J4="","",Auswertung!J4) -> SG | AP4: =Auswertung!R4 -> 3
A5: =Auswertung!A5 -> 4 | B5: =Auswertung!B5 -> Kunibert Hexenmeister VdH Eningen | C5: =Auswertung!C5 -> Eidotter Edelmix | D5: =Auswertung!D5 -> IGP 3 | E5: =IF(Auswertung!E5="","",Auswertung!E5) -> 97 | F5: =IF(Auswertung!F5="","",Auswertung!F5) -> 95 | G5: =IF(Auswertung!G5="","",Auswertung!G5) -> 93 | H5: =IF(Auswertung!I5="","",Auswertung!I5) -> 285 | I5: =IF(Auswertung!J5="","",Auswertung!J5) -> SG | AP5: =Auswertung!R5 -> 1
A6: =Auswertung!A6 -> 5 | B6: =Auswertung!B6 -> Marion Fröhlich VfH Ilvesheim | C6: =Auswertung!C6 -> Trigger Hollands | D6: =Auswertung!D6 -> Team-Test | E6: =IF(Auswertung!E6="","",Auswertung!E6) ->  | F6: =IF(Auswertung!F6="","",Auswertung!F6) -> 49 | G6: =IF(Auswertung!G6="","",Auswertung!G6) -> 80 | H6: =IF(Auswertung!I6="","",Auswertung!I6) -> 129 | I6: =IF(Auswertung!J6="","",Auswertung!J6) -> G | AP6: =Auswertung!R6 -> 11
A7: =Auswertung!A7 -> 6 | B7: =Auswertung!B7 -> maier | C7: =Auswertung!C7 ->  | D7: =Auswertung!D7 -> SK | E7: =IF(Auswertung!E7="","",Auswertung!E7) ->  | F7: =IF(Auswertung!F7="","",Auswertung!F7) ->  | G7: =IF(Auswertung!G7="","",Auswertung!G7) ->  | H7: =IF(Auswertung!I7="","",Auswertung!I7) ->  | I7: =IF(Auswertung!J7="","",Auswertung!J7) ->  | AP7: =Auswertung!R7 -> 10
A8: =Auswertung!A8 -> 7 | B8: =Auswertung!B8 ->  | C8: =Auswertung!C8 ->  | D8: =Auswertung!D8 ->  | E8: =IF(Auswertung!E8="","",Auswertung!E8) ->  | F8: =IF(Auswertung!F8="","",Auswertung!F8) ->  | G8: =IF(Auswertung!G8="","",Auswertung!G8) ->  | H8: =IF(Auswertung!I8="","",Auswertung!I8) ->  | I8: =IF(Auswertung!J8="","",Auswertung!J8) ->  | AP8: =Auswertung!R8 -> 
A9: =Auswertung!A9 -> 8 | B9: =Auswertung!B9 ->  | C9: =Auswertung!C9 ->  | D9: =Auswertung!D9 ->  | E9: =IF(Auswertung!E9="","",Auswertung!E9) ->  | F9: =IF(Auswertung!F9="","",Auswertung!F9) ->  | G9: =IF(Auswertung!G9="","",Auswertung!G9) ->  | H9: =IF(Auswertung!I9="","",Auswertung!I9) ->  | I9: =IF(Auswertung!J9="","",Auswertung!J9) ->  | AP9: =Auswertung!R9 -> 
A10: =Auswertung!A10 -> 9 | B10: =Auswertung!B10 ->  | C10: =Auswertung!C10 ->  | D10: =Auswertung!D10 ->  | E10: =IF(Auswertung!E10="","",Auswertung!E10) ->  | F10: =IF(Auswertung!F10="","",Auswertung!F10) ->  | G10: =IF(Auswertung!G10="","",Auswertung!G10) ->  | H10: =IF(Auswertung!I10="","",Auswertung!I10) ->  | I10: =IF(Auswertung!J10="","",Auswertung!J10) ->  | AP10: =Auswertung!R10 -> 
A11: =Auswertung!A11 -> 10 | B11: =Auswertung!B11 ->  | C11: =Auswertung!C11 ->  | D11: =Auswertung!D11 ->  | E11: =IF(Auswertung!E11="","",Auswertung!E11) ->  | F11: =IF(Auswertung!F11="","",Auswertung!F11) ->  | G11: =IF(Auswertung!G11="","",Auswertung!G11) ->  | H11: =IF(Auswertung!I11="","",Auswertung!I11) ->  | I11: =IF(Auswertung!J11="","",Auswertung!J11) ->  | AP11: =Auswertung!R11 -> 
A12: =Auswertung!A12 -> 11 | B12: =Auswertung!B12 ->  | C12: =Auswertung!C12 ->  | D12: =Auswertung!D12 ->  | E12: =IF(Auswertung!E12="","",Auswertung!E12) ->  | F12: =IF(Auswertung!F12="","",Auswertung!F12) ->  | G12: =IF(Auswertung!G12="","",Auswertung!G12) ->  | H12: =IF(Auswertung!I12="","",Auswertung!I12) ->  | I12: =IF(Auswertung!J12="","",Auswertung!J12) ->  | AP12: =Auswertung!R12 -> 
A13: =Auswertung!A13 -> 12 | B13: =Auswertung!B13 ->  | C13: =Auswertung!C13 ->  | D13: =Auswertung!D13 ->  | E13: =IF(Auswertung!E13="","",Auswertung!E13) ->  | F13: =IF(Auswertung!F13="","",Auswertung!F13) ->  | G13: =IF(Auswertung!G13="","",Auswertung!G13) ->  | H13: =IF(Auswertung!I13="","",Auswertung!I13) ->  | I13: =IF(Auswertung!J13="","",Auswertung!J13) ->  | AP13: =Auswertung!R13 -> 
A14: =Auswertung!A14 -> 13 | B14: =Auswertung!B14 ->  | C14: =Auswertung!C14 ->  | D14: =Auswertung!D14 ->  | E14: =IF(Auswertung!E14="","",Auswertung!E14) ->  | F14: =IF(Auswertung!F14="","",Auswertung!F14) ->  | G14: =IF(Auswertung!G14="","",Auswertung!G14) ->  | H14: =IF(Auswertung!I14="","",Auswertung!I14) ->  | I14: =IF(Auswertung!J14="","",Auswertung!J14) ->  | AP14: =Auswertung!R14 -> 
A15: =Auswertung!A15 -> 14 | B15: =Auswertung!B15 ->  | C15: =Auswertung!C15 ->  | D15: =Auswertung!D15 ->  | E15: =IF(Auswertung!E15="","",Auswertung!E15) ->  | F15: =IF(Auswertung!F15="","",Auswertung!F15) ->  | G15: =IF(Auswertung!G15="","",Auswertung!G15) ->  | H15: =IF(Auswertung!I15="","",Auswertung!I15) ->  | I15: =IF(Auswertung!J15="","",Auswertung!J15) ->  | AP15: =Auswertung!R15 -> 
A16: =Auswertung!A16 -> 15 | B16: =Auswertung!B16 ->  | C16: =Auswertung!C16 ->  | D16: =Auswertung!D16 ->  | E16: =IF(Auswertung!E16="","",Auswertung!E16) ->  | F16: =IF(Auswertung!F16="","",Auswertung!F16) ->  | G16: =IF(Auswertung!G16="","",Auswertung!G16) ->  | H16: =IF(Auswertung!I16="","",Auswertung!I16) ->  | I16: =IF(Auswertung!J16="","",Auswertung!J16) ->  | AP16: =Auswertung!R16 -> 
A17: =Auswertung!A17 -> 16 | B17: =Auswertung!B17 ->  | C17: =Auswertung!C17 ->  | D17: =Auswertung!D17 ->  | E17: =IF(Auswertung!E17="","",Auswertung!E17) ->  | F17: =IF(Auswertung!F17="","",Auswertung!F17) ->  | G17: =IF(Auswertung!G17="","",Auswertung!G17) ->  | H17: =IF(Auswertung!I17="","",Auswertung!I17) ->  | I17: =IF(Auswertung!J17="","",Auswertung!J17) ->  | AP17: =Auswertung!R17 -> 
A18: =Auswertung!A18 -> 17 | B18: =Auswertung!B18 ->  | C18: =Auswertung!C18 ->  | D18: =Auswertung!D18 ->  | E18: =IF(Auswertung!E18="","",Auswertung!E18) ->  | F18: =IF(Auswertung!F18="","",Auswertung!F18) ->  | G18: =IF(Auswertung!G18="","",Auswertung!G18) ->  | H18: =IF(Auswertung!I18="","",Auswertung!I18) ->  | I18: =IF(Auswertung!J18="","",Auswertung!J18) ->  | AP18: =Auswertung!R18 -> 
A19: =Auswertung!A19 -> 18 | B19: =Auswertung!B19 ->  | C19: =Auswertung!C19 ->  | D19: =Auswertung!D19 ->  | E19: =IF(Auswertung!E19="","",Auswertung!E19) ->  | F19: =IF(Auswertung!F19="","",Auswertung!F19) ->  | G19: =IF(Auswertung!G19="","",Auswertung!G19) ->  | H19: =IF(Auswertung!I19="","",Auswertung!I19) ->  | I19: =IF(Auswertung!J19="","",Auswertung!J19) ->  | AP19: =Auswertung!R19 -> 
A20: =Auswertung!A20 -> 19 | B20: =Auswertung!B20 ->  | C20: =Auswertung!C20 ->  | D20: =Auswertung!D20 ->  | E20: =IF(Auswertung!E20="","",Auswertung!E20) ->  | F20: =IF(Auswertung!F20="","",Auswertung!F20) ->  | G20: =IF(Auswertung!G20="","",Auswertung!G20) ->  | H20: =IF(Auswertung!I20="","",Auswertung!I20) ->  | I20: =IF(Auswertung!J20="","",Auswertung!J20) ->  | AP20: =Auswertung!R20 -> 
A21: =Auswertung!A21 -> 20 | B21: =Auswertung!B21 ->  | C21: =Auswertung!C21 ->  | D21: =Auswertung!D21 ->  | E21: =IF(Auswertung!E21="","",Auswertung!E21) ->  | F21: =IF(Auswertung!F21="","",Auswertung!F21) ->  | G21: =IF(Auswertung!G21="","",Auswertung!G21) ->  | H21: =IF(Auswertung!I21="","",Auswertung!I21) ->  | I21: =IF(Auswertung!J21="","",Auswertung!J21) ->  | AP21: =Auswertung!R21 -> 
A22: =Auswertung!A22 -> 21 | B22: =Auswertung!B22 ->  | C22: =Auswertung!C22 ->  | D22: =Auswertung!D22 ->  | E22: =IF(Auswertung!E22="","",Auswertung!E22) ->  | F22: =IF(Auswertung!F22="","",Auswertung!F22) ->  | G22: =IF(Auswertung!G22="","",Auswertung!G22) ->  | H22: =IF(Auswertung!I22="","",Auswertung!I22) ->  | I22: =IF(Auswertung!J22="","",Auswertung!J22) ->  | AP22: =Auswertung!R22 -> 
A23: =Auswertung!A23 -> 22 | B23: =Auswertung!B23 ->  | C23: =Auswertung!C23 ->  | D23: =Auswertung!D23 ->  | E23: =IF(Auswertung!E23="","",Auswertung!E23) ->  | F23: =IF(Auswertung!F23="","",Auswertung!F23) ->  | G23: =IF(Auswertung!G23="","",Auswertung!G23) ->  | H23: =IF(Auswertung!I23="","",Auswertung!I23) ->  | I23: =IF(Auswertung!J23="","",Auswertung!J23) ->  | AP23: =Auswertung!R23 -> 
A24: =Auswertung!A24 -> 23 | B24: =Auswertung!B24 ->  | C24: =Auswertung!C24 ->  | D24: =Auswertung!D24 ->  | E24: =IF(Auswertung!E24="","",Auswertung!E24) ->  | F24: =IF(Auswertung!F24="","",Auswertung!F24) ->  | G24: =IF(Auswertung!G24="","",Auswertung!G24) ->  | H24: =IF(Auswertung!I24="","",Auswertung!I24) ->  | I24: =IF(Auswertung!J24="","",Auswertung!J24) ->  | AP24: =Auswertung!R24 -> 
A25: =Auswertung!A25 -> 24 | B25: =Auswertung!B25 ->  | C25: =Auswertung!C25 ->  | D25: =Auswertung!D25 ->  | E25: =IF(Auswertung!E25="","",Auswertung!E25) ->  | F25: =IF(Auswertung!F25="","",Auswertung!F25) ->  | G25: =IF(Auswertung!G25="","",Auswertung!G25) ->  | H25: =IF(Auswertung!I25="","",Auswertung!I25) ->  | I25: =IF(Auswertung!J25="","",Auswertung!J25) ->  | AP25: =Auswertung!R25 -> 
A26: =Auswertung!A26 -> 25 | B26: =Auswertung!B26 ->  | C26: =Auswertung!C26 ->  | D26: =Auswertung!D26 ->  | E26: =IF(Auswertung!E26="","",Auswertung!E26) ->  | F26: =IF(Auswertung!F26="","",Auswertung!F26) ->  | G26: =IF(Auswertung!G26="","",Auswertung!G26) ->  | H26: =IF(Auswertung!I26="","",Auswertung!I26) ->  | I26: =IF(Auswertung!J26="","",Auswertung!J26) ->  | AP26: =Auswertung!R26 -> 
A27: =Auswertung!A27 -> 26 | B27: =Auswertung!B27 ->  | C27: =Auswertung!C27 ->  | D27: =Auswertung!D27 ->  | E27: =IF(Auswertung!E27="","",Auswertung!E27) ->  | F27: =IF(Auswertung!F27="","",Auswertung!F27) ->  | G27: =IF(Auswertung!G27="","",Auswertung!G27) ->  | H27: =IF(Auswertung!I27="","",Auswertung!I27) ->  | I27: =IF(Auswertung!J27="","",Auswertung!J27) ->  | AP27: =Auswertung!R27 -> 
A28: =Auswertung!A28 -> 27 | B28: =Auswertung!B28 ->  | C28: =Auswertung!C28 ->  | D28: =Auswertung!D28 ->  | E28: =IF(Auswertung!E28="","",Auswertung!E28) ->  | F28: =IF(Auswertung!F28="","",Auswertung!F28) ->  | G28: =IF(Auswertung!G28="","",Auswertung!G28) ->  | H28: =IF(Auswertung!I28="","",Auswertung!I28) ->  | I28: =IF(Auswertung!J28="","",Auswertung!J28) ->  | AP28: =Auswertung!R28 -> 
A29: =Auswertung!A29 -> 28 | B29: =Auswertung!B29 ->  | C29: =Auswertung!C29 ->  | D29: =Auswertung!D29 ->  | E29: =IF(Auswertung!E29="","",Auswertung!E29) ->  | F29: =IF(Auswertung!F29="","",Auswertung!F29) ->  | G29: =IF(Auswertung!G29="","",Auswertung!G29) ->  | H29: =IF(Auswertung!I29="","",Auswertung!I29) ->  | I29: =IF(Auswertung!J29="","",Auswertung!J29) ->  | AP29: =Auswertung!R29 -> 
A30: =Auswertung!A30 -> 29 | B30: =Auswertung!B30 ->  | C30: =Auswertung!C30 ->  | D30: =Auswertung!D30 ->  | E30: =IF(Auswertung!E30="","",Auswertung!E30) ->  | F30: =IF(Auswertung!F30="","",Auswertung!F30) ->  | G30: =IF(Auswertung!G30="","",Auswertung!G30) ->  | H30: =IF(Auswertung!I30="","",Auswertung!I30) ->  | I30: =IF(Auswertung!J30="","",Auswertung!J30) ->  | AP30: =Auswertung!R30 -> 
A31: =Auswertung!A31 -> 30 | B31: =Auswertung!B31 ->  | C31: =Auswertung!C31 ->  | D31: =Auswertung!D31 ->  | E31: =IF(Auswertung!E31="","",Auswertung!E31) ->  | F31: =IF(Auswertung!F31="","",Auswertung!F31) ->  | G31: =IF(Auswertung!G31="","",Auswertung!G31) ->  | H31: =IF(Auswertung!I31="","",Auswertung!I31) ->  | I31: =IF(Auswertung!J31="","",Auswertung!J31) ->  | AP31: =Auswertung!R31 -> 
A32: =Auswertung!A32 -> 31 | B32: =Auswertung!B32 ->  | C32: =Auswertung!C32 ->  | D32: =Auswertung!D32 ->  | E32: =IF(Auswertung!E32="","",Auswertung!E32) ->  | F32: =IF(Auswertung!F32="","",Auswertung!F32) ->  | G32: =IF(Auswertung!G32="","",Auswertung!G32) ->  | H32: =IF(Auswertung!I32="","",Auswertung!I32) ->  | I32: =IF(Auswertung!J32="","",Auswertung!J32) ->  | AP32: =Auswertung!R32 -> 
A33: =Auswertung!A33 -> 32 | B33: =Auswertung!B33 ->  | C33: =Auswertung!C33 ->  | D33: =Auswertung!D33 ->  | E33: =IF(Auswertung!E33="","",Auswertung!E33) ->  | F33: =IF(Auswertung!F33="","",Auswertung!F33) ->  | G33: =IF(Auswertung!G33="","",Auswertung!G33) ->  | H33: =IF(Auswertung!I33="","",Auswertung!I33) ->  | I33: =IF(Auswertung!J33="","",Auswertung!J33) ->  | AP33: =Auswertung!R33 -> 
A34: =Auswertung!A34 -> 33 | B34: =Auswertung!B34 ->  | C34: =Auswertung!C34 ->  | D34: =Auswertung!D34 ->  | E34: =IF(Auswertung!E34="","",Auswertung!E34) ->  | F34: =IF(Auswertung!F34="","",Auswertung!F34) ->  | G34: =IF(Auswertung!G34="","",Auswertung!G34) ->  | H34: =IF(Auswertung!I34="","",Auswertung!I34) ->  | I34: =IF(Auswertung!J34="","",Auswertung!J34) ->  | AP34: =Auswertung!R34 -> 
A35: =Auswertung!A35 -> 34 | B35: =Auswertung!B35 ->  | C35: =Auswertung!C35 ->  | D35: =Auswertung!D35 ->  | E35: =IF(Auswertung!E35="","",Auswertung!E35) ->  | F35: =IF(Auswertung!F35="","",Auswertung!F35) ->  | G35: =IF(Auswertung!G35="","",Auswertung!G35) ->  | H35: =IF(Auswertung!I35="","",Auswertung!I35) ->  | I35: =IF(Auswertung!J35="","",Auswertung!J35) ->  | AP35: =Auswertung!R35 -> 
A36: =Auswertung!A36 -> 35 | B36: =Auswertung!B36 ->  | C36: =Auswertung!C36 ->  | D36: =Auswertung!D36 ->  | E36: =IF(Auswertung!E36="","",Auswertung!E36) ->  | F36: =IF(Auswertung!F36="","",Auswertung!F36) ->  | G36: =IF(Auswertung!G36="","",Auswertung!G36) ->  | H36: =IF(Auswertung!I36="","",Auswertung!I36) ->  | I36: =IF(Auswertung!J36="","",Auswertung!J36) ->  | AP36: =Auswertung!R36 -> 
A37: =Auswertung!A37 -> 36 | B37: =Auswertung!B37 ->  | C37: =Auswertung!C37 ->  | D37: =Auswertung!D37 ->  | E37: =IF(Auswertung!E37="","",Auswertung!E37) ->  | F37: =IF(Auswertung!F37="","",Auswertung!F37) ->  | G37: =IF(Auswertung!G37="","",Auswertung!G37) ->  | H37: =IF(Auswertung!I37="","",Auswertung!I37) ->  | I37: =IF(Auswertung!J37="","",Auswertung!J37) ->  | AP37: =Auswertung!R37 -> 
B40: Unterschrit LR | E40: Unterschrift PL

Sheet Sammelblatt
A2: =Organisation!D3 -> Südwestdeutscher Hundesportverband
A3: Prüfungs-Sammelblatt
E4: Leistungsrichter: | G4: =IF(Organisation!B11="","",Organisation!B11) -> Horst Hinterhuber
G5: =IF(Organisation!B12="","",Organisation!B12) -> 
A6: Bericht über abgehaltene Leistungsveranstaltungen
A7: Austragender Verein : | D7: =IF(Organisation!B7="","",Organisation!B7) -> Hundefreunde Irgendwo | J7: Vereinsnr: | L7: =IF(Organisation!B8="","",Organisation!B8) -> 0305
A8: Tag der Veranstaltung : | D8: =IF(Organisation!B10="","",Organisation!B10) -> 30.03.2019 | J8: KG: | L8: =IF(Organisation!B9="","",Organisation!B9) -> 3
A9: Anschrift, Tel.-Nr. des Prüfungsleiters : | D9: =CONCATENATE(Organisation!B14,", Tel: ",Organisation!B17,CHAR(10),Organisation!B15,", ",Organisation!B16) -> Hans Wurst, Tel: 0621 xxxxx Metzgerstr. 4, 68259 Mannheim
A11: Art der Veranstaltung: | D11: =Organisation!B5 -> Vereinsprüfung
A12: Prüfungsnummer | D12: =IF(Organisation!B6="","",Organisation!B6) -> 135
A13: Helfer 1 | D13: =IF(Organisation!B19="","",Organisation!B19) -> 
A14: Helfer 2 | D14: =IF(Organisation!B20="","",Organisation!B20) -> 
A16: Aufschlüsselung der vorgeführten Hunde und Bewertungen
B17: Anzahl Hunde vorgeführt in | E17: Einheiten (E) | F17: nicht bei Pokalkämpfen und Sparten!! | K17: nicht bestanden in
B18: A | C18: B | D18: C | E18: Gesamt | F18: vorz | G18: sgt | H18: gut | I18: befr | J18: mang | K18: A | L18: B | M18: C
A19: GPr 1 (2E) | E19: =IF(MAX(B19:D19)>0,C19+D19,"") -> 
A20: GPr 2 (2E) | E20: =IF(MAX(B20:D20)>0,C20+D20,"") -> 
A21: GPr 3 (2E) | E21: =IF(MAX(B21:D21)>0,C21+D21,"") -> 
A22: IGP V (2E) | E22: =IF(MAX(B22:D22)>0,MAX(B22:D22)*2,"") -> 
A23: IGP ZTP (3E) | E23: =IF(MAX(B23:D23)>0,B23+C23+D23,"") -> 
A24: FPr-UPr-SPr 1
A25: FPr-UPr-SPr 2
A26: FPr-UPr-SPr 3
A27: IGP 1 (3E) | E27: =IF(MAX(B27:D27)>0,B27+C27+D27,"") -> 
A28: IGP 2 (3E) | E28: =IF(MAX(B28:D28)>0,B28+C28+D28,"") -> 
A29: IGP 3 (3E) | E29: =IF(MAX(B29:D29)>0,B29+C29+D29,"") -> 
A30: IFH-V (1E) | E30: =IF(MAX(B30:D30)>0,B30*1,"") -> 
A31: IFH-1 (3E) | E31: =IF(MAX(B31:D31)>0,B31*3,"") ->  | O31: Manuell ausfüllen
A32: IFH-2 (3E) | E32: =IF(MAX(B32:D32)>0,B32*3,"") -> 
A33: IGP-FH (6E) | E33: =IF(MAX(B33:D33)>0,B33*6,"") -> 
A34: IBGH 1 (1E) | E34: =IF(C34="","",C34) -> 
A35: IBGH 2 (1E) | E35: =IF(C35="","",C35) -> 
A36: IBGH 3 (1E) | E36: =IF(C36="","",C36) -> 
A37: BH (2E) | E37: =IF(MAX(B37:D37)>0,C37*2,"") -> 
A38: BH/SK (3E) | E38: =IF(MAX(B38:D38)>0,C38*3,"") -> 
A39: SK (1E)
A40: Team-Test (2)
A41: StöberSt. 1 (1) | E41: =IF(MAX(B41:D41)>0,B41*1,"") -> 
A42: StöberSt. 2 (1) | E42: =IF(MAX(B42:D42)>0,B42*1,"") -> 
A43: StöberSt. 3 (1) | E43: =IF(MAX(B43:D43)>0,B43*1,"") -> 
A44: Summe | B44: =IF(SUM(B19:B43)=0,"",SUM(B19:B43)) ->  | C44: =IF(SUM(C19:C43)=0,"",SUM(C19:C43)) -> 
A46: Bemerkungen: (vom Leistungsrichter auszufüllen)
A48: Schutzdiensthelfer:
A49: Dieses Blatt ist sorgfältig vom LR auszufüllen und mit den Prüfungsunterlagen der Leistungsbuchstelle zuzusenden. | I49: Unterschrift des LR

Sheet Meldescheine
A1: =Organisation!D3 -> Südwestdeutscher Hundesportverband | G1: LB-Nr.: | H1: =IF($M$15="","",LOOKUP(L5,'Stammdaten HF'!A:A,'Stammdaten HF'!S:S)) -> 123
A5: Veranstaltender Verein: | B5: =Organisation!B7 -> Hundefreunde Irgendwo | H5: Vereins-Nr.: | J5: =Organisation!B8 -> 0305 | L5: 1
H6: Prf.Nr.
A7: Anmeldung zur | F7: A | G7: B | H7: C | I7: Gesamt
A8: Gebrauchshundeprf | B8: =LOOKUP(L5,'Stammdaten HF'!A:A,'Stammdaten HF'!C:C) -> IFH 1 | F8: =M8 -> 84 | G8: =N8 -> 90 | H8: 91 | I8: =Q8 -> 265 | M8: =IF(INDEX(Auswertung!$E$2:$E$37,MATCH($L$5,Auswertung!$A$2:$A$37,))="","",INDEX(Auswertung!$E$2:$E$37,MATCH($L$5,Auswertung!$A$2:$A$37,))) -> 84 | N8: =IF(INDEX(Auswertung!$F$2:$F$37,MATCH($L$5,Auswertung!$A$2:$A$37,))="","",INDEX(Auswertung!$F$2:$F$37,MATCH($L$5,Auswertung!$A$2:$A$37,))) -> 90 | O8: =IF(INDEX(Auswertung!$G$2:$G$37,MATCH($L$5,Auswertung!$A$2:$A$37,))="","",INDEX(Auswertung!$G$2:$G$37,MATCH($L$5,Auswertung!$A$2:$A$37,))) -> 91 | P8: =IF(INDEX(Auswertung!$H$2:$H$37,MATCH($L$5,Auswertung!$A$2:$A$37,))="","",INDEX(Auswertung!$H$2:$H$37,MATCH($L$5,Auswertung!$A$2:$A$37,))) -> a | Q8: =IF(INDEX(Auswertung!$I$2:$I$37,MATCH($L$5,Auswertung!$A$2:$A$37,))="","",INDEX(Auswertung!$I$2:$I$37,MATCH($L$5,Auswertung!$A$2:$A$37,))) -> 265 | R8: =IF(INDEX(Auswertung!$J$2:$J$37,MATCH($L$5,Auswertung!$A$2:$A$37,))="","",INDEX(Auswertung!$J$2:$J$37,MATCH($L$5,Auswertung!$A$2:$A$37,))) -> V | S8: =IF(INDEX(Auswertung!$D$2:$D$37,MATCH($L$5,Auswertung!$A$2:$A$37,))="","",INDEX(Auswertung!$D$2:$D$37,MATCH($L$5,Auswertung!$A$2:$A$37,))) -> IFH 1
A9: Fährtenhundprüfung | F9: Note | G9: =R8 -> V | H9: AK: | I9: =IF(OR(G9="n.b.",G9="mgh"),"ohne",IF(OR(S8="BH/SK",S8="BH"),R8,S8)) -> IFH 1
A10: Stöberprüfung | F10: TSB | G10: =IF(P8="a","ausgeprägt",IF(P8="vh","vorhanden",IF(P8="ng","nicht genügend",""))) -> ausgeprägt
A11: Spartenprf. | D11: BH bestanden: | G11: ja | I11: nein
A12: BH-Prf / TeamT / BGH | D12: SK bestanden: | G12: ja | I12: nein
A13: Leistungsrichter | B13: =CONCATENATE(Organisation!B11," ",Organisation!B12) -> Horst Hinterhuber
A15: Name des Hundes: | B15: =IF(OR(M15="",M15=0),"",M15) -> Axel | M15: =LOOKUP($L$5,'Stammdaten HF'!A:A,'Stammdaten HF'!Q:Q) -> Axel | Y15: =IF($R$4="","",CONCATENATE(S4," ",R4)) -> 
A16: Rasse | B16: =IF(OR(M16="",M16=0),"",M16) -> Mixy | I16: =IF(OR(N16="",N16=0),"",N16) -> Rüde | M16: =LOOKUP($L$5,'Stammdaten HF'!A:A,'Stammdaten HF'!R:R) -> Mixy | N16: =LOOKUP($L$5,'Stammdaten HF'!A:A,'Stammdaten HF'!U:U) -> Rüde
A17: Geworfen am: | B17: =IF(OR(M17="",M17=0),"",M17) -> 1978-07-01 | F17: Täto-Nr: | G17: =IF(OR(N17="",N17=0),"",N17) -> MC- 3344 | M17: =LOOKUP($L$5,'Stammdaten HF'!$A:$A,'Stammdaten HF'!T:T) -> 28672 | N17: =LOOKUP($L$5,'Stammdaten HF'!$A:$A,'Stammdaten HF'!W:W) -> MC- 3344
A18: Chip-Nr.: | B18: =IF(OR(M18="",M18=0),"",M18) -> 454454567883111 | E18: ZB-od. Reg-Nr.: | G18: =IF(OR(N18="",N18=0),"",N18) -> VDH/DMC 34345 | M18: =LOOKUP(L5,'Stammdaten HF'!A:A,'Stammdaten HF'!X:X) -> 454454567883111 | N18: =LOOKUP(L5,'Stammdaten HF'!A:A,'Stammdaten HF'!V:V) -> VDH/DMC 34345
A19: Eigentümer: | B19: =IF(OR(P19="",P19=0),"",CONCATENATE(P19," ",M19)) -> Dorothea Hübsch | M19: =LOOKUP(L5,'Stammdaten HF'!A:A,'Stammdaten HF'!J:J) -> Hübsch | P19: =LOOKUP(L5,'Stammdaten HF'!A:A,'Stammdaten HF'!K:K) -> Dorothea
A20: Straße und Ort: | B20: =IF(OR(M20="",M20=0),"",CONCATENATE(P20," ",M20)) -> Schönau Max-Wi | M20: =LOOKUP(L5,'Stammdaten HF'!A:A,'Stammdaten HF'!O:O) -> Max-Wi | P20: =LOOKUP(L5,'Stammdaten HF'!A:A,'Stammdaten HF'!P:P) -> Schönau
A21: In welchem Verein Mitglied | B21: =IF(OR(M21="",M21=0),"",M21) -> SSPV | H21: Mitgl.-Nr.: | I21: =IF(OR(N21="",N21=0),"",N21) -> 30512345 | M21: =LOOKUP(L5,'Stammdaten HF'!A:A,'Stammdaten HF'!L:L) -> SSPV | N21: =LOOKUP(L5,'Stammdaten HF'!A:A,'Stammdaten HF'!M:M) -> 30512345
A22: Führer des Hundes | B22: =IF(OR(M22=0,M22=""),"",CONCATENATE(P22," ",M22)) -> Andreas Mustermax | M22: =LOOKUP(L5,'Stammdaten HF'!A:A,'Stammdaten HF'!D:D) -> Mustermax | P22: =LOOKUP(L5,'Stammdaten HF'!A:A,'Stammdaten HF'!E:E) -> Andreas
A23: Straße und Ort: | B23: =IF(OR(M23="",M23=0),"",CONCATENATE(P23," ",M23)) -> Mannheim ringstr | M23: =LOOKUP(L5,'Stammdaten HF'!A:A,'Stammdaten HF'!H:H) -> ringstr | P23: =LOOKUP(L5,'Stammdaten HF'!A:A,'Stammdaten HF'!I:I) -> Mannheim
A24: In welchem Verein Mitglied | B24: =IF(OR(M24="",M24=0),"",M24) -> sspv MA | H24: Mitgl.-Nr.: | I24: =IF(OR(N24="",N24=0),"",N24) -> 30500001 | M24: =LOOKUP(L5,'Stammdaten HF'!A:A,'Stammdaten HF'!F:F) -> sspv MA | N24: =LOOKUP(L5,'Stammdaten HF'!A:A,'Stammdaten HF'!G:G) -> 30500001
A25: =CONCATENATE("Mir ist bekannt, dass die Teilnahme an der Prüfung / Wettkampf auf eigene Rechnung und Gefahr erfolgt. Der Speicherung und Veröffentlichung meiner Daten für die sportlichen Zwecke beim ",Organisation!B3," / dhv / VDH stimme ich zu.") -> Mir ist bekannt, dass die Teilnahme an der Prüfung / Wettkampf auf eigene Rechnung und Gefahr erfolgt. Der Speicherung und Veröffentlichung meiner Daten für die sportlichen Zwecke beim swhv / dhv / VDH stimme ich zu.
A26: Ort: | B26: =Organisation!B7 -> Hundefreunde Irgendwo | G26: den, | H26: =Organisation!B10 -> 30.03.2019
A29: BH-Prf., LB-Nr., Mitgl.-Nr. ZB-Nr., Täto-Nr. u. sonst. Angaben überprüft durch LR (Stempel) | F29: (Unterschrift)

Sheet Sportbeitrag
A2: =Organisation!D3 -> Südwestdeutscher Hundesportverband
A3: Abrechnung - Sportbeitrag GHd
G5: =IF(Organisation!B12="","",Organisation!B12) -> 
A7: Prf.-Nr.: | B7: =IF(Organisation!B6="","",Organisation!B6) -> 135 | I7: RechnungsNr.:
A8: Austragender Verein : | D8: =IF(Organisation!B7="","",Organisation!B7) -> Hundefreunde Irgendwo | J8: Vereinsnr: | L8: =IF(Organisation!B8="","",Organisation!B8) -> 0305
A9: Tag der Veranstaltung : | D9: =IF(Organisation!B10="","",Organisation!B10) -> 30.03.2019 | J9: KG: | L9: =IF(Organisation!B9="","",Organisation!B9) -> 3
A10: Leistungrichter/in | D10: =IF(Organisation!B11="","",Organisation!B11) -> Horst Hinterhuber
A11: Anschrift, Tel.-Nr. des Prüfungsleiters : | D11: =CONCATENATE(Organisation!B14,", Tel: ",Organisation!B17,CHAR(10),Organisation!B15,", ",Organisation!B16) -> Hans Wurst, Tel: 0621 xxxxx Metzgerstr. 4, 68259 Mannheim
A12: Art der Veranstaltung: | D12: =Organisation!B5 -> Vereinsprüfung
A15: Je Start werden Gebühren in Höhe von | G15: =Organisation!B22 -> 1.1 | I15: Euro erhoben
A18: Prüfungsart | C18: BH/SK | E18: BH | F18: IGP | H18: IFH | J18: IBGH | L18: Gesamt
A19: Teilnehmer | C19: =COUNTIF(Auswertung!$D$2:$D$37,"BH/SK") -> 1 | E19: =COUNTIF(Auswertung!$D$2:$D$37,"BH") -> 0 | F19: =COUNTIF(Auswertung!$D$2:$D$37,"IGP ?")+COUNTIF(Auswertung!$D$2:$D$37,"IGP ZTP") -> 1 | H19: =COUNTIF(Auswertung!$D$2:$D$37,"IFH ?")+COUNTIF(Auswertung!$D$2:$D$37,"IGP FH") -> 1 | J19: =COUNTIF(Auswertung!$D$2:$D$37,"IBGH ?") -> 0 | L19: =SUM(C19:J19) -> 3
A20: Betrag | C20: =C19*$G15 -> 1.1 | E20: =E19*$G15 -> 0 | F20: =F19*$G15 -> 1.1 | H20: =H19*$G15 -> 1.1 | J20: =J19*$G15 -> 0 | L20: =L19*$G15 -> 3.3
B26: Unterschrift des LR/in & Stempel | H26: Unterschrift Prüfungsleiter
A27: =CONCATENATE("Dieses Blatt ist mit den Prüfungsunterlagen sofort an die ",Organisation!B3," - Geschäftsstelle zu senden.") -> Dieses Blatt ist mit den Prüfungsunterlagen sofort an die swhv - Geschäftsstelle zu senden.

Sheet RichterbuchIGP
A1: Abt. A (Fährte) | D1: =IF($R$4="","",LOOKUP(J1,'Stammdaten HF'!A:A,'Stammdaten HF'!C:C)) -> IGP 3 | I1: Kat: | J1: 4
A3: Name u. Anschrift des HF: | C3: =IF($R$4="","",CONCATENATE(S4," ",R4)) -> Kunibert Hexenmeister | H3: =IF($R$4="","",LOOKUP($J$1,'Stammdaten HF'!$A:A,'Stammdaten HF'!F:F)) -> VdH Eningen
A4: Name des Hundes: | B4: =IF($R$4="","",LOOKUP($J$1,'Stammdaten HF'!$A:A,'Stammdaten HF'!Q:Q)) -> Eidotter | I4: LB-Nr.: | J4: =IF($R$4="","",LOOKUP($J$1,'Stammdaten HF'!$A:A,'Stammdaten HF'!S:S)) -> 0 | Q4: HF | R4: =IF(LOOKUP($J$1,'Stammdaten HF'!$A:A,'Stammdaten HF'!D:D)=0,"",LOOKUP($J$1,'Stammdaten HF'!$A:A,'Stammdaten HF'!D:D)) -> Hexenmeister | S4: =IF(LOOKUP($J$1,'Stammdaten HF'!$A:B,'Stammdaten HF'!E:E)=0,"",LOOKUP($J$1,'Stammdaten HF'!$A:B,'Stammdaten HF'!E:E)) -> Kunibert
A5: Rasse: | B5: =IF($R$4="","",LOOKUP($J$1,'Stammdaten HF'!$A:A,'Stammdaten HF'!R:R)) -> Edelmix | F5: Täto-Nr. / Chip-Nr.: | H5: =IF($R$4="","",CONCATENATE(R5," / ",R6)) -> 0 / 0 | Q5: Täto | R5: =LOOKUP($J$1,'Stammdaten HF'!$A:A,'Stammdaten HF'!W:W) -> 0
A6: Wurftag: | B6: =IF($R$4="","",LOOKUP($J$1,'Stammdaten HF'!$A:A,'Stammdaten HF'!T:T)) -> 00:00:00 | G6: ZB-Nr.: | H6: =IF($R$4="","",LOOKUP($J$1,'Stammdaten HF'!$A:A,'Stammdaten HF'!V:V)) -> 0 | Q6: Chip | R6: =LOOKUP($J$1,'Stammdaten HF'!$A:A,'Stammdaten HF'!X:X) -> 0
Q8: Stufe
A10: Gelegt um: | E10: Uhr | G10: Ansatz: | J10: Uhr
A12: Hund : | B12: verweist | F12: nimmt auf
A18: Abt. B (Unterordnung) | D18: =$D$1 -> IGP 3 | I18: =$I$1 -> Kat: | J18: =$J$1 -> 4
A20: Name u. Anschrift des HF: | C20: =$C$3 -> Kunibert Hexenmeister | H20: =$H$3 -> VdH Eningen
A21: Name des Hundes: | B21: =$B$4 -> Eidotter | I21: LB-Nr.: | J21: =$J$4 -> 0
A22: Rasse: | B22: =$B$5 -> Edelmix | F22: Täto-Nr. / Chip-Nr.: | H22: =$H$5 -> 0 / 0
A23: Wurftag: | B23: =$B$6 -> 00:00:00 | G23: ZB-Nr.: | H23: =$H$6 -> 0
A25: Übungs-Beschreibung | B25: 1 | C25: 2 | D25: 3 | E25: Pkte. | F25: Prä-dikat | G25: Beschreibung der Leistungen
A26: Freifolge | B26: 15 | C26: 15 | D26: 15
A27: Sitz aus der Bewegung | B27: 10 | C27: 10 | D27: 5
A28: Ablegen in Verbindung mit Herankommen | B28: 10 | C28: 10 | D28: 10
A29: Stehen aus der Bewegung | B29: - | C29: 5 | D29: 10
A30: Bringen auf ebener Erde | B30: 15 | C30: 10 | D30: 10
A31: Bringen über eine Hürde | B31: 15 | C31: 15 | D31: 15
A32: Bringen über eine Schrägwand | B32: 15 | C32: 15 | D32: 15
A33: Voraussenden mit Hinlegen | B33: 10 | C33: 10 | D33: 10
A34: Ablegen unter Ablenkung | B34: 10 | C34: 10 | D34: 10
A35: Zusammen | B35: =SUM(B26:B34) -> 100 | C35: =SUM(C26:C34) -> 100 | D35: 100
A39: Abt. C (Schutzdienst) | D39: =$D$1 -> IGP 3 | I39: =$I$1 -> Kat: | J39: =$J$1 -> 4
A41: Name u. Anschrift des HF: | C41: =$C$3 -> Kunibert Hexenmeister | H41: =$H$3 -> VdH Eningen
A42: Name des Hundes: | B42: =$B$4 -> Eidotter | I42: LB-Nr.: | J42: =$J$4 -> 0
A43: Rasse: | B43: =$B$5 -> Edelmix | F43: Täto-Nr. / Chip-Nr.: | H43: =$H$5 -> 0 / 0
A44: Wurftag: | B44: =$B$6 -> 00:00:00 | G44: ZB-Nr.: | H44: =$H$6 -> 0
A47: Übungs-Beschreibung | B47: 1 | C47: 2 | D47: 3 | E47: Pkte. | F47: Prä-dikat | G47: Beschreibung der Leistungen
A48: Revieren nach dem Helfer | B48: 5 | C48: 5 | D48: 10
A49: Stellen (5) und Verbellen (10) | B49: 15 | C49: 15 | D49: 15
A50: Verhinderung eines Fluchtversuchs des Helfers | B50: 20 | C50: 15 | D50: 10
A51: Abwehr eines Angriffes aus der Bewachungsphase | B51: 30 | C51: 20 | D51: 15
A52: Rückentransport | B52: - | C52: 5 | D52: 5
A53: Überfall auf den Hund aus dem Rückentransport | B53: - | C53: - | D53: 15
A54: Angriff auf den Hund aus der Bewegung | B54: 30 | C54: 20 | D54: 15
A55: Abwehr des Hundes aus der Bewachungsphase | B55: - | C55: 20 | D55: 15
A56: Zusammen | B56: =SUM(B48:B55) -> 100 | C56: =SUM(C48:C55) -> 100 | D56: 100 | G56: TSB: | H56: ausgeprägt | I56: 
H57: vorhanden | I57: 
H58: nicht genügend | I58: 

Sheet RichterbuchGPr
A1: Abt. B (Unterordnung) | D1: =IF($R$4="","",LOOKUP(J1,'Stammdaten HF'!A:A,'Stammdaten HF'!C:C)) -> IFH 1 | I1: Kat: | J1: 1
A3: Name u. Anschrift des HF: | C3: =IF($R$4="","",CONCATENATE(S4," ",R4)) -> Andreas Mustermax | H3: =IF($R$4="","",LOOKUP($J$1,'Stammdaten HF'!$A:A,'Stammdaten HF'!F:F)) -> sspv MA
A4: Name des Hundes: | B4: =IF($R$4="","",LOOKUP($J$1,'Stammdaten HF'!$A:A,'Stammdaten HF'!Q:Q)) -> Axel | I4: LB-Nr.: | J4: =IF($R$4="","",LOOKUP($J$1,'Stammdaten HF'!$A:A,'Stammdaten HF'!S:S)) -> 123 | Q4: HF | R4: =IF(LOOKUP($J$1,'Stammdaten HF'!$A:A,'Stammdaten HF'!D:D)=0,"",LOOKUP($J$1,'Stammdaten HF'!$A:A,'Stammdaten HF'!D:D)) -> Mustermax | S4: =IF(LOOKUP($J$1,'Stammdaten HF'!$A:B,'Stammdaten HF'!E:E)=0,"",LOOKUP($J$1,'Stammdaten HF'!$A:B,'Stammdaten HF'!E:E)) -> Andreas
A5: Rasse: | B5: =IF($R$4="","",LOOKUP($J$1,'Stammdaten HF'!$A:A,'Stammdaten HF'!R:R)) -> Mixy | F5: Täto-Nr. / Chip-Nr.: | H5: =IF($R$4="","",CONCATENATE(R5," / ",R6)) -> MC- 3344 / 454454567883111 | Q5: Täto | R5: =LOOKUP($J$1,'Stammdaten HF'!$A:A,'Stammdaten HF'!W:W) -> MC- 3344
A6: Wurftag: | B6: =IF($R$4="","",LOOKUP($J$1,'Stammdaten HF'!$A:A,'Stammdaten HF'!T:T)) -> 1978-07-01 | G6: ZB-Nr.: | H6: =IF($R$4="","",LOOKUP($J$1,'Stammdaten HF'!$A:A,'Stammdaten HF'!V:V)) -> VDH/DMC 34345 | Q6: Chip | R6: =LOOKUP($J$1,'Stammdaten HF'!$A:A,'Stammdaten HF'!X:X) -> 454454567883111
A8: Übungs-Beschreibung | B8: 1 | C8: 2 | D8: 3 | E8: Pkte. | F8: Prä-dikat | G8: Beschreibung der Leistungen | Q8: Stufe
A9: Freifolge | B9: 15 | C9: 15 | D9: 15
A10: Sitz aus der Bewegung | B10: 10 | C10: 10 | D10: 5
A11: Ablegen in Verbindung mit Herankommen | B11: 10 | C11: 10 | D11: 10
A12: Stehen aus der Bewegung | B12: - | C12: 5 | D12: 10
A13: Bringen auf ebener Erde | B13: 15 | C13: 10 | D13: 10
A14: Bringen über eine Hürde | B14: 15 | C14: 15 | D14: 15
A15: Bringen über eine Schrägwand | B15: 15 | C15: 15 | D15: 15
A16: Voraussenden mit Hinlegen | B16: 10 | C16: 10 | D16: 10
A17: Ablegen unter Ablenkung | B17: 10 | C17: 10 | D17: 10
A18: Zusammen | B18: =SUM(B9:B17) -> 100 | C18: =SUM(C9:C17) -> 100 | D18: =SUM(D9:D17) -> 100
A20: Abt. C (Schutzdienst) | D20: =$D$1 -> IFH 1 | I20: =$I$1 -> Kat: | J20: =$J$1 -> 1
A22: Name u. Anschrift des HF: | C22: =$C$3 -> Andreas Mustermax | H22: =$H$3 -> sspv MA
A23: Name des Hundes: | B23: =$B$4 -> Axel | I23: LB-Nr.: | J23: =$J$4 -> 123
A24: Rasse: | B24: =$B$5 -> Mixy | F24: Täto-Nr. / Chip-Nr.: | H24: =$H$5 -> MC- 3344 / 454454567883111
A25: Wurftag: | B25: =$B$6 -> 1978-07-01 | G25: ZB-Nr.: | H25: =$H$6 -> VDH/DMC 34345
A28: Übungs-Beschreibung | B28: 1 | C28: 2 | D28: 3 | E28: Pkte. | F28: Prä-dikat | G28: Beschreibung der Leistungen
A29: Revieren nach dem Helfer | B29: 5 | C29: 5 | D29: 10
A30: Stellen (5) und Verbellen (10) | B30: 15 | C30: 15 | D30: 15
A31: Verhinderung eines Fluchtversuchs des Helfers | B31: 20 | C31: 15 | D31: 10
A32: Abwehr eines Angriffes aus der Bewachungsphase | B32: 30 | C32: 20 | D32: 15
A33: Rückentransport | B33: - | C33: 5 | D33: 5
A34: Überfall auf den Hund aus dem Rückentransport | B34: - | C34: - | D34: 15
A35: Angriff auf den Hund aus der Bewegung | B35: 30 | C35: 20 | D35: 15
A36: Abwehr des Hundes aus der Bewachungsphase | B36: - | C36: 20 | D36: 15
A37: Zusammen | B37: =SUM(B29:B36) -> 100 | C37: =SUM(C29:C36) -> 100 | D37: 100 | G37: TSB: | H37: ausgeprägt | I37: 
H38: vorhanden | I38: 
H39: nicht genügend | I39: 

Sheet RichterbuchFH
A1: Abt. A (Fährte) | D1: =IF($R$4="","",LOOKUP(J1,'Stammdaten HF'!A:A,'Stammdaten HF'!C:C)) -> IFH 1 | I1: Kat: | J1: 1
A3: Name u. Anschrift des HF: | C3: =IF($R$4="","",CONCATENATE(S4," ",R4)) -> Andreas Mustermax | H3: =IF($R$4="","",LOOKUP($J$1,'Stammdaten HF'!$A:A,'Stammdaten HF'!F:F)) -> sspv MA
A4: Name des Hundes: | B4: =IF($R$4="","",LOOKUP($J$1,'Stammdaten HF'!$A:A,'Stammdaten HF'!Q:Q)) -> Axel | I4: LB-Nr.: | J4: =IF($R$4="","",LOOKUP($J$1,'Stammdaten HF'!$A:A,'Stammdaten HF'!S:S)) -> 123 | Q4: HF | R4: =IF(LOOKUP($J$1,'Stammdaten HF'!$A:A,'Stammdaten HF'!D:D)=0,"",LOOKUP($J$1,'Stammdaten HF'!$A:A,'Stammdaten HF'!D:D)) -> Mustermax | S4: =IF(LOOKUP($J$1,'Stammdaten HF'!$A:B,'Stammdaten HF'!E:E)=0,"",LOOKUP($J$1,'Stammdaten HF'!$A:B,'Stammdaten HF'!E:E)) -> Andreas
A5: Rasse: | B5: =IF($R$4="","",LOOKUP($J$1,'Stammdaten HF'!$A:A,'Stammdaten HF'!R:R)) -> Mixy | F5: Täto-Nr. / Chip-Nr.: | H5: =IF($R$4="","",CONCATENATE(R5," / ",R6)) -> MC- 3344 / 454454567883111 | Q5: Täto | R5: =LOOKUP($J$1,'Stammdaten HF'!$A:A,'Stammdaten HF'!W:W) -> MC- 3344
A6: Wurftag: | B6: =IF($R$4="","",LOOKUP($J$1,'Stammdaten HF'!$A:A,'Stammdaten HF'!T:T)) -> 1978-07-01 | G6: ZB-Nr.: | H6: =IF($R$4="","",LOOKUP($J$1,'Stammdaten HF'!$A:A,'Stammdaten HF'!V:V)) -> VDH/DMC 34345 | Q6: Chip | R6: =LOOKUP($J$1,'Stammdaten HF'!$A:A,'Stammdaten HF'!X:X) -> 454454567883111
Q8: Stufe
A10: Gelegt um: | E10: Uhr | G10: Ansatz: | J10: Uhr
A12: Hund : | B12: verweist | F12: nimmt auf

Sheet RichterbuchBH-VT
A1: Bewertung BH/VT | D1: =IF($R$4="","",LOOKUP(J1,'Stammdaten HF'!A:A,'Stammdaten HF'!C:C)) -> BH/SK | I1: Kat: | J1: 2
A3: Name u. Anschrift des HF: | C3: =IF($R$4="","",CONCATENATE(S4," ",R4)) -> Marion Fröhlich | H3: =IF($R$4="","",LOOKUP($J$1,'Stammdaten HF'!$A:A,'Stammdaten HF'!F:F)) -> VfH Ilvesheim
A4: Name des Hundes: | B4: =IF($R$4="","",LOOKUP($J$1,'Stammdaten HF'!$A:A,'Stammdaten HF'!Q:Q)) -> Trigger | I4: LB-Nr.: | J4: =IF($R$4="","",LOOKUP($J$1,'Stammdaten HF'!$A:A,'Stammdaten HF'!S:S)) -> 4567 | Q4: HF | R4: =IF(LOOKUP($J$1,'Stammdaten HF'!$A:A,'Stammdaten HF'!D:D)=0,"",LOOKUP($J$1,'Stammdaten HF'!$A:A,'Stammdaten HF'!D:D)) -> Fröhlich | S4: =IF(LOOKUP($J$1,'Stammdaten HF'!$A:B,'Stammdaten HF'!E:E)=0,"",LOOKUP($J$1,'Stammdaten HF'!$A:B,'Stammdaten HF'!E:E)) -> Marion
A5: Rasse: | B5: =IF($R$4="","",LOOKUP($J$1,'Stammdaten HF'!$A:A,'Stammdaten HF'!R:R)) -> Hollands | F5: Täto-Nr. / Chip-Nr.: | H5: =IF($R$4="","",CONCATENATE(R5," / ",R6)) -> ohne / 276222333444555 | Q5: Täto | R5: =LOOKUP($J$1,'Stammdaten HF'!$A:A,'Stammdaten HF'!W:W) -> ohne
A6: Wurftag: | B6: =IF($R$4="","",LOOKUP($J$1,'Stammdaten HF'!$A:A,'Stammdaten HF'!T:T)) -> 2013-10-14 | G6: ZB-Nr.: | H6: =IF($R$4="","",LOOKUP($J$1,'Stammdaten HF'!$A:A,'Stammdaten HF'!V:V)) -> asasas | Q6: Chip | R6: =LOOKUP($J$1,'Stammdaten HF'!$A:A,'Stammdaten HF'!X:X) -> 276222333444555
A8: Übungs-Beschreibung | B8: 1 | C8: Pkte. | D8: Prä-dikat | E8: Beschreibung der Leistungen | O8: Stufe
A9: Leinenführigkeit | B9: 15
A10: Freifolge | B10: 15
A11: Absitzen aus der Bewegung | B11: 10
A12: Ablegen aus der Bewegung | B12: 10
A13: Ablegen unter Ablenkung | B13: 10
A14: Zusammen | B14: =SUM(B9:B13) -> 60
A16: Begegnung mit: | E16: Prüfung im Verkehr
A17: Personengruppen
A18: Radfahrern
A19: Autos
A20: Joggern / Inlineskatern
A21: mit anderen Hunden
A22: Verhalten des allein gelassenen Hundes
A24: Werturteil - bestanden / nicht bestanden

Sheet RichterbuchIBGH
A1: Bewertung IBGH | D1: =IF($R$4="","",LOOKUP(J1,'Stammdaten HF'!A:A,'Stammdaten HF'!C:C)) -> IFH 1 | I1: Kat: | J1: 1
A3: Name u. Anschrift des HF: | C3: =IF($R$4="","",CONCATENATE(S4," ",R4)) -> Andreas Mustermax | H3: =IF($R$4="","",LOOKUP($J$1,'Stammdaten HF'!$A:A,'Stammdaten HF'!F:F)) -> sspv MA
A4: Name des Hundes: | B4: =IF($R$4="","",LOOKUP($J$1,'Stammdaten HF'!$A:A,'Stammdaten HF'!Q:Q)) -> Axel | I4: LB-Nr.: | J4: =IF($R$4="","",LOOKUP($J$1,'Stammdaten HF'!$A:A,'Stammdaten HF'!S:S)) -> 123 | Q4: HF | R4: =IF(LOOKUP($J$1,'Stammdaten HF'!$A:A,'Stammdaten HF'!D:D)=0,"",LOOKUP($J$1,'Stammdaten HF'!$A:A,'Stammdaten HF'!D:D)) -> Mustermax | S4: =IF(LOOKUP($J$1,'Stammdaten HF'!$A:B,'Stammdaten HF'!E:E)=0,"",LOOKUP($J$1,'Stammdaten HF'!$A:B,'Stammdaten HF'!E:E)) -> Andreas
A5: Rasse: | B5: =IF($R$4="","",LOOKUP($J$1,'Stammdaten HF'!$A:A,'Stammdaten HF'!R:R)) -> Mixy | F5: Täto-Nr. / Chip-Nr.: | H5: =IF($R$4="","",CONCATENATE(R5," / ",R6)) -> MC- 3344 / 454454567883111 | Q5: Täto | R5: =LOOKUP($J$1,'Stammdaten HF'!$A:A,'Stammdaten HF'!W:W) -> MC- 3344
A6: Wurftag: | B6: =IF($R$4="","",LOOKUP($J$1,'Stammdaten HF'!$A:A,'Stammdaten HF'!T:T)) -> 1978-07-01 | G6: ZB-Nr.: | H6: =IF($R$4="","",LOOKUP($J$1,'Stammdaten HF'!$A:A,'Stammdaten HF'!V:V)) -> VDH/DMC 34345 | Q6: Chip | R6: =LOOKUP($J$1,'Stammdaten HF'!$A:A,'Stammdaten HF'!X:X) -> 454454567883111
A8: Übungs-Beschreibung | B8: 1 | C8: 2 | D8: 3 | E8: Pkte. | F8: Prä-dikat | G8: Beschreibung der Leistungen | Q8: Stufe
A9: Leinenführigkeit | B9: 30 | C9: 20
A10: Freifolge | B10: 30 | C10: 20 | D10: 20
A11: Absitzen aus der Bewegung | B11: 15 | C11: 15 | D11: 10
A12: Ablegen aus der Bewegung | B12: 15 | C12: 15 | D12: 10
A13: Stehen aus dem Schritt | B13: - | C13: - | D13: 10
A14: Bringen auf ebener Erde | B14: - | C14: 10 | D14: 15
A15: Bringen über eine Schrägwand (140cm) | B15: - | C15: - | D15: 15
A16: Voraussenden mit Hinlegen | C16: 10 | D16: 10
A17: Ablegen unter Ablenkung | B17: 10 | C17: 10 | D17: 10
A18: Zusammen | B18: =SUM(B9:B17) -> 100 | C18: =SUM(C9:C17) -> 100 | D18: =SUM(D9:D17) -> 100

Sheet RichterbuchSparteF
A1: Abt. A (Fährte) | D1: =IF($R$4="","",LOOKUP(J1,'Stammdaten HF'!A:A,'Stammdaten HF'!C:C)) -> IFH 1 | I1: Kat: | J1: 1
A3: Name u. Anschrift des HF: | C3: =IF($R$4="","",CONCATENATE(S4," ",R4)) -> Andreas Mustermax | H3: =IF($R$4="","",LOOKUP($J$1,'Stammdaten HF'!$A:A,'Stammdaten HF'!F:F)) -> sspv MA
A4: Name des Hundes: | B4: =IF($R$4="","",LOOKUP($J$1,'Stammdaten HF'!$A:A,'Stammdaten HF'!Q:Q)) -> Axel | I4: LB-Nr.: | J4: =IF($R$4="","",LOOKUP($J$1,'Stammdaten HF'!$A:A,'Stammdaten HF'!S:S)) -> 123 | Q4: HF | R4: =IF(LOOKUP($J$1,'Stammdaten HF'!$A:A,'Stammdaten HF'!D:D)=0,"",LOOKUP($J$1,'Stammdaten HF'!$A:A,'Stammdaten HF'!D:D)) -> Mustermax | S4: =IF(LOOKUP($J$1,'Stammdaten HF'!$A:B,'Stammdaten HF'!E:E)=0,"",LOOKUP($J$1,'Stammdaten HF'!$A:B,'Stammdaten HF'!E:E)) -> Andreas
A5: Rasse: | B5: =IF($R$4="","",LOOKUP($J$1,'Stammdaten HF'!$A:A,'Stammdaten HF'!R:R)) -> Mixy | F5: Täto-Nr. / Chip-Nr.: | H5: =IF($R$4="","",CONCATENATE(R5," / ",R6)) -> MC- 3344 / 454454567883111 | Q5: Täto | R5: =LOOKUP($J$1,'Stammdaten HF'!$A:A,'Stammdaten HF'!W:W) -> MC- 3344
A6: Wurftag: | B6: =IF($R$4="","",LOOKUP($J$1,'Stammdaten HF'!$A:A,'Stammdaten HF'!T:T)) -> 1978-07-01 | G6: ZB-Nr.: | H6: =IF($R$4="","",LOOKUP($J$1,'Stammdaten HF'!$A:A,'Stammdaten HF'!V:V)) -> VDH/DMC 34345 | Q6: Chip | R6: =LOOKUP($J$1,'Stammdaten HF'!$A:A,'Stammdaten HF'!X:X) -> 454454567883111
Q8: Stufe
A10: Gelegt um: | E10: Uhr | G10: Ansatz: | J10: Uhr
A12: Hund : | B12: verweist | F12: nimmt auf

Sheet RichterbuchSparteU
A1: Abt. B (Unterordnung) | D1: =IF($R$4="","",LOOKUP(J1,'Stammdaten HF'!A:A,'Stammdaten HF'!C:C)) -> IFH 1 | I1: Kat: | J1: 1
A3: Name u. Anschrift des HF: | C3: =IF($R$4="","",CONCATENATE(S4," ",R4)) -> Andreas Mustermax | H3: =IF($R$4="","",LOOKUP($J$1,'Stammdaten HF'!$A:A,'Stammdaten HF'!F:F)) -> sspv MA
A4: Name des Hundes: | B4: =IF($R$4="","",LOOKUP($J$1,'Stammdaten HF'!$A:A,'Stammdaten HF'!Q:Q)) -> Axel | I4: LB-Nr.: | J4: =IF($R$4="","",LOOKUP($J$1,'Stammdaten HF'!$A:A,'Stammdaten HF'!S:S)) -> 123 | Q4: HF | R4: =IF(LOOKUP($J$1,'Stammdaten HF'!$A:A,'Stammdaten HF'!D:D)=0,"",LOOKUP($J$1,'Stammdaten HF'!$A:A,'Stammdaten HF'!D:D)) -> Mustermax | S4: =IF(LOOKUP($J$1,'Stammdaten HF'!$A:B,'Stammdaten HF'!E:E)=0,"",LOOKUP($J$1,'Stammdaten HF'!$A:B,'Stammdaten HF'!E:E)) -> Andreas
A5: Rasse: | B5: =IF($R$4="","",LOOKUP($J$1,'Stammdaten HF'!$A:A,'Stammdaten HF'!R:R)) -> Mixy | F5: Täto-Nr. / Chip-Nr.: | H5: =IF($R$4="","",CONCATENATE(R5," / ",R6)) -> MC- 3344 / 454454567883111 | Q5: Täto | R5: =LOOKUP($J$1,'Stammdaten HF'!$A:A,'Stammdaten HF'!W:W) -> MC- 3344
A6: Wurftag: | B6: =IF($R$4="","",LOOKUP($J$1,'Stammdaten HF'!$A:A,'Stammdaten HF'!T:T)) -> 1978-07-01 | G6: ZB-Nr.: | H6: =IF($R$4="","",LOOKUP($J$1,'Stammdaten HF'!$A:A,'Stammdaten HF'!V:V)) -> VDH/DMC 34345 | Q6: Chip | R6: =LOOKUP($J$1,'Stammdaten HF'!$A:A,'Stammdaten HF'!X:X) -> 454454567883111
A8: Übungs-Beschreibung | B8: 1 | C8: 2 | D8: 3 | E8: Pkte. | F8: Prä-dikat | G8: Beschreibung der Leistungen | Q8: Stufe
A9: Freifolge | B9: 15 | C9: 15 | D9: 15
A10: Sitz aus der Bewegung | B10: 10 | C10: 10 | D10: 5
A11: Ablegen in Verbindung mit Herankommen | B11: 10 | C11: 10 | D11: 10
A12: Stehen aus der Bewegung | B12: - | C12: 5 | D12: 10
A13: Bringen auf ebener Erde | B13: 15 | C13: 10 | D13: 10
A14: Bringen über eine Hürde | B14: 15 | C14: 15 | D14: 15
A15: Bringen über eine Schrägwand | B15: 15 | C15: 15 | D15: 15
A16: Voraussenden mit Hinlegen | B16: 10 | C16: 10 | D16: 10
A17: Ablegen unter Ablenkung | B17: 10 | C17: 10 | D17: 10
A18: Zusammen | B18: =SUM(B9:B17) -> 100 | C18: =SUM(C9:C17) -> 100 | D18: =SUM(D9:D17) -> 100

Sheet RichterbuchSparteS
A1: Abt. C (Schutzdienst) | D1: =IF($R$4="","",LOOKUP(J1,'Stammdaten HF'!A:A,'Stammdaten HF'!C:C)) -> IFH 1 | I1: Kat: | J1: 1
A3: Name u. Anschrift des HF: | C3: =IF($R$4="","",CONCATENATE(S4," ",R4)) -> Andreas Mustermax | H3: =IF($R$4="","",LOOKUP($J$1,'Stammdaten HF'!$A:A,'Stammdaten HF'!F:F)) -> sspv MA
A4: Name des Hundes: | B4: =IF($R$4="","",LOOKUP($J$1,'Stammdaten HF'!$A:A,'Stammdaten HF'!Q:Q)) -> Axel | I4: LB-Nr.: | J4: =IF($R$4="","",LOOKUP($J$1,'Stammdaten HF'!$A:A,'Stammdaten HF'!S:S)) -> 123 | Q4: HF | R4: =IF(LOOKUP($J$1,'Stammdaten HF'!$A:A,'Stammdaten HF'!D:D)=0,"",LOOKUP($J$1,'Stammdaten HF'!$A:A,'Stammdaten HF'!D:D)) -> Mustermax | S4: =IF(LOOKUP($J$1,'Stammdaten HF'!$A:B,'Stammdaten HF'!E:E)=0,"",LOOKUP($J$1,'Stammdaten HF'!$A:B,'Stammdaten HF'!E:E)) -> Andreas
A5: Rasse: | B5: =IF($R$4="","",LOOKUP($J$1,'Stammdaten HF'!$A:A,'Stammdaten HF'!R:R)) -> Mixy | F5: Täto-Nr. / Chip-Nr.: | H5: =IF($R$4="","",CONCATENATE(R5," / ",R6)) -> MC- 3344 / 454454567883111 | Q5: Täto | R5: =LOOKUP($J$1,'Stammdaten HF'!$A:A,'Stammdaten HF'!W:W) -> MC- 3344
A6: Wurftag: | B6: =IF($R$4="","",LOOKUP($J$1,'Stammdaten HF'!$A:A,'Stammdaten HF'!T:T)) -> 1978-07-01 | G6: ZB-Nr.: | H6: =IF($R$4="","",LOOKUP($J$1,'Stammdaten HF'!$A:A,'Stammdaten HF'!V:V)) -> VDH/DMC 34345 | Q6: Chip | R6: =LOOKUP($J$1,'Stammdaten HF'!$A:A,'Stammdaten HF'!X:X) -> 454454567883111
A8: Übungs-Beschreibung | B8: 1 | C8: 2 | D8: 3 | E8: Pkte. | F8: Prä-dikat | G8: Beschreibung der Leistungen
A9: Revieren nach dem Helfer | B9: 5 | C9: 5 | D9: 10
A10: Stellen und Verbellen | B10: 15 | C10: 15 | D10: 15
A11: Verhinderung eines Fluchtversuchs des Helfers | B11: 20 | C11: 15 | D11: 10
A12: Abwehr eines Angriffes aus der Bewachungsphase | B12: 30 | C12: 20 | D12: 15
A13: Rückentransport | B13: - | C13: 5 | D13: 5
A14: Überfall auf den Hund aus dem Rückentransport | B14: - | C14: - | D14: 15
A15: Angriff auf den Hund aus der Bewegung | B15: 30 | C15: 20 | D15: 15
A16: Abwehr des Hundes aus der Bewachungsphase | B16: - | C16: 20 | D16: 15
A17: Zusammen | B17: =SUM(B9:B16) -> 100 | C17: =SUM(C9:C16) -> 100 | D17: 100 | G17: TSB: | H17: ausgeprägt | I17: 
H18: vorhanden | I18: 
H19: nicht genügend | I19: 

Sheet RichterbuchStöber
A1: Stöberprüfung | D1: =IF($R$4="","",LOOKUP(J1,'Stammdaten HF'!A:A,'Stammdaten HF'!C:C)) -> IFH 1 | I1: Kat: | J1: 1
A3: Name u. Anschrift des HF: | C3: =IF($R$4="","",CONCATENATE(S4," ",R4)) -> Andreas Mustermax | H3: =IF($R$4="","",LOOKUP($J$1,'Stammdaten HF'!$A:A,'Stammdaten HF'!F:F)) -> sspv MA
A4: Name des Hundes: | B4: =IF($R$4="","",LOOKUP($J$1,'Stammdaten HF'!$A:A,'Stammdaten HF'!Q:Q)) -> Axel | I4: LB-Nr.: | J4: =IF($R$4="","",LOOKUP($J$1,'Stammdaten HF'!$A:A,'Stammdaten HF'!S:S)) -> 123 | Q4: HF | R4: =IF(LOOKUP($J$1,'Stammdaten HF'!$A:A,'Stammdaten HF'!D:D)=0,"",LOOKUP($J$1,'Stammdaten HF'!$A:A,'Stammdaten HF'!D:D)) -> Mustermax | S4: =IF(LOOKUP($J$1,'Stammdaten HF'!$A:B,'Stammdaten HF'!E:E)=0,"",LOOKUP($J$1,'Stammdaten HF'!$A:B,'Stammdaten HF'!E:E)) -> Andreas
A5: Rasse: | B5: =IF($R$4="","",LOOKUP($J$1,'Stammdaten HF'!$A:A,'Stammdaten HF'!R:R)) -> Mixy | F5: Täto-Nr. / Chip-Nr.: | H5: =IF($R$4="","",CONCATENATE(R5," / ",R6)) -> MC- 3344 / 454454567883111 | Q5: Täto | R5: =LOOKUP($J$1,'Stammdaten HF'!$A:A,'Stammdaten HF'!W:W) -> MC- 3344
A6: Wurftag: | B6: =IF($R$4="","",LOOKUP($J$1,'Stammdaten HF'!$A:A,'Stammdaten HF'!T:T)) -> 1978-07-01 | G6: ZB-Nr.: | H6: =IF($R$4="","",LOOKUP($J$1,'Stammdaten HF'!$A:A,'Stammdaten HF'!V:V)) -> VDH/DMC 34345 | Q6: Chip | R6: =LOOKUP($J$1,'Stammdaten HF'!$A:A,'Stammdaten HF'!X:X) -> 454454567883111
A8: Stufe 1 | B8: 20x30 m | E8: 2 Gegenstände (20/21 Punkte) | J8: 10 Min
A9: Stufe 2 | B9: 20x40 m | E9: 4 Gegenstände (10/10/10/11 Punkte) | J9: 12 Min
A10: Stufe 3 | B10: 30x50 m | E10: 5 Gegenstände (8/8/8/8/9 Punkte) | J10: 15 Min
A13: Prüfungsanforderungen | C13: Pkte. | D13: vergeben | F13: Beschreibung der Leistungen
A14: Führigkeit des Hundes (Befolgen der Hör- / Sichtzeichen des HF) | C14: 20
A15: Spürintensität des Hundes (Bereitschaft intensiver Witterungsaufnahme) | C15: 20
A16: Ausdauer (Anhalten des Spürtriebes bis zum Auffinden des Gegenstandes) | C16: 10
A17: Verhalten des HF (Einwirkungen auf den Hund) | C17: 9
A18: Auffinden der Gegenstände (Überzeugendes Verweisen) | C18: 41
A19: Zusammen | C19: =SUM(C14:C18) -> 100 | F19: Wertnote:

Sheet RichterbuchTeam
A1: Team-Test | E1: =IF($S$4="","",LOOKUP(J1,'Stammdaten HF'!A:A,'Stammdaten HF'!C:C)) -> IFH 1 | I1: Kat: | J1: 1
A3: Name u. Anschrift des HF: | C3: =IF($S$4="","",CONCATENATE(T4," ",S4)) -> Andreas Mustermax | I3: =IF($S$4="","",LOOKUP($J$1,'Stammdaten HF'!$A:A,'Stammdaten HF'!F:F)) -> sspv MA
A4: Name des Hundes: | C4: =IF($S$4="","",LOOKUP($J$1,'Stammdaten HF'!$A:A,'Stammdaten HF'!Q:Q)) -> Axel | J4: LB-Nr.: | K4: =IF($S$4="","",LOOKUP($J$1,'Stammdaten HF'!$A:A,'Stammdaten HF'!S:S)) -> 123 | R4: HF | S4: =IF(LOOKUP($J$1,'Stammdaten HF'!$A:A,'Stammdaten HF'!D:D)=0,"",LOOKUP($J$1,'Stammdaten HF'!$A:A,'Stammdaten HF'!D:D)) -> Mustermax | T4: =IF(LOOKUP($J$1,'Stammdaten HF'!$A:B,'Stammdaten HF'!E:E)=0,"",LOOKUP($J$1,'Stammdaten HF'!$A:B,'Stammdaten HF'!E:E)) -> Andreas
A5: Rasse: | C5: =IF($S$4="","",LOOKUP($J$1,'Stammdaten HF'!$A:A,'Stammdaten HF'!R:R)) -> Mixy | G5: Täto-Nr. / Chip-Nr.: | I5: =IF($S$4="","",CONCATENATE(S5," / ",S6)) -> MC- 3344 / 454454567883111 | R5: Täto | S5: =LOOKUP($J$1,'Stammdaten HF'!$A:A,'Stammdaten HF'!W:W) -> MC- 3344
A6: Wurftag: | C6: =IF($S$4="","",LOOKUP($J$1,'Stammdaten HF'!$A:A,'Stammdaten HF'!T:T)) -> 1978-07-01 | H6: ZB-Nr.: | I6: =IF($S$4="","",LOOKUP($J$1,'Stammdaten HF'!$A:A,'Stammdaten HF'!V:V)) -> VDH/DMC 34345 | R6: Chip | S6: =LOOKUP($J$1,'Stammdaten HF'!$A:A,'Stammdaten HF'!X:X) -> 454454567883111
K8: Ges. Pkte
A9: Leinenführigkeit (20 Punkte) | R9: Stufe
A10: 1
A11: Sitzübung (10 Punkte)
A12: 2
A13: Platzübung (10 Punkte)
A14: 3
A15: Anbinden (10 Punkte)
A16: 4
I17: Punktzahl Aufgabe 1 -4 (max. 50 Punkte)
A18: Durchqueren einer Personengruppe (15 Punkte)
A19: 5
A20: Begrüßung von Personen (15 Punkte)
A21: 6
A22: Außerartliche Unbefangenheit - Ball (15 Punkte)
A23: 7
A24: Innerartliche Unbefangenheit - Spiel mit anderem Hund (15 Punkte)
A25: 8
A26: Begegnungsverkehr mit Jogger/ Inline-Skater (15 Punkte)
A27: 9
A28: Begegnungsver-kehr mit Zweirad (Fahrrad, Moped, …) (15 Punkte)
A29: 10
A30: Begegnungsverkehr mit Auto (10 Punkte)
A31: 11
A32: Bei den Aufgaben 5 - 11 sind je Aufgabe mind. 50 % der vorgesehenen Punkte zu erzielen | H32: Punktzahl Aufgabe 5 - 11 (max. 100 Punkte)
A33: Mindestpunktzahl für das Bestehen des „Team – Test“ sind 80 Punkte ( max. sind 150 Gesamtpunkte erreichbar) | H33: Gesamtpunktzahl:

Sheet Tabelle3
